Workbook

Sheet Outputs Monthly
N1: Annual Financial Receipts
B2: County Fiscal Year 2016-17 | N2: Total Number of Financial Receipts for the Year: | O2: Projected | P2: Actual
B3: Outputs Monthly Report Form for CCOC | O3: =LOOKUP(D8,Sheet2!A208:A274,Sheet2!C208:C274) -> 445889
N4: Financial Receipts are totaled for the full fiscal year and entered here annually. This annual total is to be reported on the September submission.
C6: Report for the Month of: | D6: Feb
C7: Version #: | D7: 1
C8: County: | D8: Brevard | F8: Contact: | G8: Michelle Levar | J8: Telephone: | K8: 321-633-7782 | M8: E-mail: | N8: kim.reynolds@brevardclerk.us
F11: Criminal | M11: Civil
D12: Circuit | E12: County | F12: Juvenile Delinquency | G12: Traffic | H12: Total | J12: Circuit | K12: County | L12: Traffic | M12: Probate | N12: Family | O12: Juvenile Dependency | P12: Total | R12: Grand Total
B13: Projections
C14: Cases/Defendants | D14: =LOOKUP(D8,Sheet2!A2:A68,Sheet2!D2:D68) -> 8000 | E14: =LOOKUP(D8,Sheet2!A2:A68,Sheet2!E2:E68) -> 10000 | F14: =LOOKUP(D8,Sheet2!A2:A68,Sheet2!F2:F68) -> 1900 | G14: =LOOKUP(D8,Sheet2!A2:A68,Sheet2!G2:G68) -> 7200 | H14: =SUM(D14:G14) -> 27100 | J14: =LOOKUP(D8,Sheet2!A2:A68,Sheet2!H2:H68) -> 5200 | K14: =LOOKUP(D8,Sheet2!A2:A68,Sheet2!I2:I68) -> 7700 | L14: =LOOKUP(D8,Sheet2!A2:A68,Sheet2!M2:M68) -> 52000 | M14: =LOOKUP(D8,Sheet2!A2:A68,Sheet2!J2:J68) -> 5000 | N14: =LOOKUP(D8,Sheet2!A2:A68,Sheet2!K2:K68) -> 7200 | O14: =LOOKUP(D8,Sheet2!A2:A68,Sheet2!L2:L68) -> 350 | P14: =SUM(J14:O14) -> 77450 | R14: =H14+P14 -> 104550
C15: Reopenings | D15: =LOOKUP(D8,Sheet2!A140:A206,Sheet2!D140:D206) -> 8200 | E15: =LOOKUP(D8,Sheet2!A140:A206,Sheet2!E140:E206) -> 2100 | F15: =LOOKUP(D8,Sheet2!A140:A206,Sheet2!F140:F206) -> 2600 | G15: =LOOKUP(D8,Sheet2!A140:A206,Sheet2!G140:G206) -> 2000 | H15: =SUM(D15:G15) -> 14900 | J15: =LOOKUP(D8,Sheet2!A140:A206,Sheet2!H140:H206) -> 6000 | K15: =LOOKUP(D8,Sheet2!A140:A206,Sheet2!I140:I206) -> 3800 | L15: =LOOKUP(D8,Sheet2!A140:A206,Sheet2!M140:M206) -> 0 | M15: =LOOKUP(D8,Sheet2!A140:A206,Sheet2!J140:J206) -> 2500 | N15: =LOOKUP(D8,Sheet2!A140:A206,Sheet2!K140:K206) -> 8500 | O15: =LOOKUP(D8,Sheet2!A140:A206,Sheet2!L140:L206) -> 800 | P15: =SUM(J15:O15) -> 21600 | R15: =H15+P15 -> 36500
C16: NOA's | D16: =LOOKUP(D8,Sheet2!A71:A137,Sheet2!D71:D137) -> 450 | E16: =LOOKUP(D8,Sheet2!A71:A137,Sheet2!E71:E137) -> 25 | F16: =LOOKUP(D8,Sheet2!A71:A137,Sheet2!F71:F137) -> 3 | G16: =LOOKUP(D8,Sheet2!A71:A137,Sheet2!G71:G137) -> 35 | H16: =SUM(D16:G16) -> 513 | J16: =LOOKUP(D8,Sheet2!A71:A137,Sheet2!H71:H137) -> 100 | K16: =LOOKUP(D8,Sheet2!A71:A137,Sheet2!I71:I137) -> 15 | L16: =LOOKUP(D8,Sheet2!A71:A137,Sheet2!M71:M137) -> 10 | M16: =LOOKUP(D8,Sheet2!A71:A137,Sheet2!J71:J137) -> 5 | N16: =LOOKUP(D8,Sheet2!A71:A137,Sheet2!K71:K137) -> 35 | O16: =LOOKUP(D8,Sheet2!A71:A137,Sheet2!L71:L137) -> 25 | P16: 190 | R16: 703
B17: October 2016
C18: Cases/Defendants | D18: 556 | E18: 756 | F18: 154 | G18: 464 | H18: =SUM(D18:G18) -> 1930 | J18: 270 | K18: 658 | L18: 2488 | M18: 393 | N18: 568 | O18: 37 | P18: 4414 | R18: 6344
C19: Reopenings | D19: 559 | E19: 118 | F19: 224 | G19: 165 | H19: =SUM(D19:G19) -> 1066 | J19: 332 | K19: 279 | L19: 0 | M19: 200 | N19: 629 | O19: 46 | P19: 1486 | R19: 2552
C20: NOA's | D20: 18 | E20: 1 | F20: 2 | G20: 1 | H20: =SUM(D20:G20) -> 22 | J20: 12 | K20: 3 | L20: 0 | M20: 0 | N20: 1 | O20: 0 | P20: 16 | R20: 38 | ZZ20: PABS4.0
B21: November 2016
C22: Cases/Defendants | D22: 682 | E22: 786 | F22: 153 | G22: 526 | H22: =SUM(D22:G22) -> 2147 | J22: 235 | K22: 677 | L22: 3043 | M22: 371 | N22: 546 | O22: 27 | P22: 4899 | R22: 7046
C23: Reopenings | D23: 669 | E23: 159 | F23: 261 | G23: 174 | H23: =SUM(D23:G23) -> 1263 | J23: 308 | K23: 357 | L23: 0 | M23: 209 | N23: 566 | O23: 57 | P23: 1497 | R23: 2760
C24: NOA's | D24: 20 | E24: 3 | F24: 0 | G24: 7 | H24: =SUM(D24:G24) -> 30 | J24: 13 | K24: 0 | L24: 1 | M24: 1 | N24: 3 | O24: 1 | P24: 19 | R24: 49
B25: December 2016
C26: Cases/Defendants | D26: 733 | E26: 768 | F26: 162 | G26: 552 | H26: =SUM(D26:G26) -> 2215 | J26: 312 | K26: 657 | L26: 2795 | M26: 420 | N26: 550 | O26: 29 | P26: 4763 | R26: 6978
C27: Reopenings | D27: 605 | E27: 134 | F27: 264 | G27: 147 | H27: =SUM(D27:G27) -> 1150 | J27: 225 | K27: 320 | L27: 0 | M27: 214 | N27: 616 | O27: 53 | P27: 1428 | R27: 2578
C28: NOA's | D28: 27 | E28: 1 | F28: 0 | G28: 4 | H28: =SUM(D28:G28) -> 32 | J28: 9 | K28: 1 | L28: 6 | M28: 0 | N28: 3 | O28: 1 | P28: 20 | R28: 52
B29: January 2017
C30: Cases/Defendants | D30: 750 | E30: 874 | F30: 145 | G30: 608 | H30: =SUM(D30:G30) -> 2377 | J30: 350 | K30: 876 | L30: 3811 | M30: 419 | N30: 574 | O30: 26 | P30: 6056 | R30: 8433
C31: Reopenings | D31: 729 | E31: 156 | F31: 267 | G31: 177 | H31: =SUM(D31:G31) -> 1329 | J31: 283 | K31: 313 | L31: 0 | M31: 218 | N31: 706 | O31: 53 | P31: 1573 | R31: 2902
C32: NOA's | D32: 22 | E32: 2 | F32: 0 | G32: 1 | H32: =SUM(D32:G32) -> 25 | J32: 14 | K32: 2 | L32: 2 | M32: 0 | N32: 1 | O32: 2 | P32: 21 | R32: 46
B33: February 2017
C34: Cases/Defendants | D34: 744 | E34: 753 | F34: 167 | G34: 634 | H34: =SUM(D34:G34) -> 2298 | J34: 340 | K34: 713 | L34: 3795 | M34: 397 | N34: 579 | O34: 39 | P34: 5863 | R34: 8161
C35: Reopenings | D35: 718 | E35: 167 | F35: 311 | G35: 163 | H35: =SUM(D35:G35) -> 1359 | J35: 268 | K35: 340 | L35: 0 | M35: 198 | N35: 227 | O35: 51 | P35: 1084 | R35: 2443
C36: NOA's | D36: 56 | E36: 1 | F36: 0 | G36: 4 | H36: =SUM(D36:G36) -> 61 | J36: 16 | K36: 0 | L36: 1 | M36: 0 | N36: 2 | O36: 1 | P36: 20 | R36: 81
B37: March 2017
C38: Cases/Defendants | H38: =SUM(D38:G38) -> 0 | P38: 0 | R38: 0
C39: Reopenings | H39: =SUM(D39:G39) -> 0 | L39: 0 | P39: 0 | R39: 0
C40: NOA's | H40: =SUM(D40:G40) -> 0 | P40: 0 | R40: 0
B41: April 2017
C42: Cases/Defendants | H42: =SUM(D42:G42) -> 0 | P42: 0 | R42: 0
C43: Reopenings | H43: =SUM(D43:G43) -> 0 | L43: 0 | P43: 0 | R43: 0
C44: NOA's | H44: =SUM(D44:G44) -> 0 | P44: 0 | R44: 0
B45: May 2017
C46: Cases/Defendants | H46: =SUM(D46:G46) -> 0 | P46: 0 | R46: 0
C47: Reopenings | H47: =SUM(D47:G47) -> 0 | L47: 0 | P47: 0 | R47: 0
C48: NOA's | H48: =SUM(D48:G48) -> 0 | P48: 0 | R48: 0
B49: June 2017
C50: Cases/Defendants | H50: =SUM(D50:G50) -> 0 | P50: 0 | R50: 0
C51: Reopenings | H51: =SUM(D51:G51) -> 0 | L51: 0 | P51: 0 | R51: 0
C52: NOA's | H52: =SUM(D52:G52) -> 0 | P52: 0 | R52: 0
B53: July 2017
C54: Cases/Defendants | H54: =SUM(D54:G54) -> 0 | P54: =SUM(J54:O54) -> 0 | R54: =H54+P54 -> 0
C55: Reopenings | H55: =SUM(D55:G55) -> 0 | L55: 0 | P55: =SUM(J55:O55) -> 0 | R55: =H55+P55 -> 0
C56: NOA's | H56: =SUM(D56:G56) -> 0 | P56: =SUM(J56:O56) -> 0 | R56: =H56+P56 -> 0
B57: August 2017
C58: Cases/Defendants | H58: =SUM(D58:G58) -> 0 | P58: =SUM(J58:O58) -> 0 | R58: =H58+P58 -> 0
C59: Reopenings | H59: =SUM(D59:G59) -> 0 | L59: 0 | P59: =SUM(J59:O59) -> 0 | R59: =H59+P59 -> 0
C60: NOA's | H60: =SUM(D60:G60) -> 0 | P60: =SUM(J60:O60) -> 0 | R60: =H60+P60 -> 0
B61: September 2017
C62: Cases/Defendants | H62: =SUM(D62:G62) -> 0 | P62: =SUM(J62:O62) -> 0 | R62: =H62+P62 -> 0
C63: Reopenings | H63: =SUM(D63:G63) -> 0 | L63: 0 | P63: =SUM(J63:O63) -> 0 | R63: =H63+P63 -> 0
C64: NOA's | H64: =SUM(D64:G64) -> 0 | P64: =SUM(J64:O64) -> 0 | R64: =H64+P64 -> 0
B65: Year-to-Date
C66: Cases/Defendants | D66: =SUM(D54+D58+D62+D18+D22+D26+D30+D34+D38+D42+D46+D50) -> 3465 | E66: 3937 | F66: 781 | G66: 2784 | H66: =SUM(D66:G66) -> 10967 | J66: =SUM(J54+J58+J62+J18+J22+J26+J30+J34+J38+J42+J46+J50) -> 1507 | K66: 3581 | L66: 15932 | M66: 2000 | N66: 2817 | O66: 158 | P66: 25995 | R66: 36962
C67: Reopenings | D67: 3280 | E67: 734 | F67: 1327 | G67: 826 | H67: =SUM(D67:G67) -> 6167 | J67: 1416 | K67: 1609 | L67: 0 | M67: 1039 | N67: 2744 | O67: 260 | P67: 7068 | R67: 13235
C68: NOA's | D68: 143 | E68: 8 | F68: 2 | G68: 17 | H68: =SUM(D68:G68) -> 170 | J68: 64 | K68: 6 | L68: 10 | M68: 1 | N68: 10 | O68: 5 | P68: 96 | R68: 266
B69: Year-to-Date % of Projections
C70: Cases/Defendants | D70: =D66/D14 -> 0.433125 | E70: 0.3937 | F70: 0.4110526316 | G70: 0.3866666667 | H70: 0.4046863469 | J70: =J66/J14 -> 0.2898076923 | K70: 0.4650649351 | L70: 0.3063846154 | M70: 0.4 | N70: 0.39125 | O70: 0.4514285714 | P70: 0.3356358941 | R70: =R66/R14 -> 0.3535341942
C71: Reopenings | D71: =IF((AND(D15=0,D67=0)),0,(IF(AND(D15=0,D67>0),1,(D67/D15)))) -> 0.4 | E71: =IF((AND(E15=0,E67=0)),0,(IF(AND(E15=0,E67>0),1,(E67/E15)))) -> 0.3495238095 | F71: 0.5103846154 | G71: 0.413 | H71: =H67/H15 -> 0.4138926174 | J71: =IF((AND(J15=0,J67=0)),0,(IF(AND(J15=0,J67>0),1,(J67/J15)))) -> 0.236 | K71: =IF((AND(K15=0,K67=0)),0,(IF(AND(K15=0,K67>0),1,(K67/K15)))) -> 0.4234210526 | L71: 0 | M71: 0.4156 | N71: 0.3228235294 | O71: 0.325 | P71: =P67/P15 -> 0.3272222222 | R71: =R67/R15 -> 0.3626027397
C72: NOA's | D72: =IF((AND(D16=0,D68=0)),0,(IF(AND(D16=0,D68>0),1,(D68/D16)))) -> 0.3177777778 | E72: =IF((AND(E16=0,E68=0)),0,(IF(AND(E16=0,E68>0),1,(E68/E16)))) -> 0.32 | F72: 0.6666666667 | G72: 0.4857142857 | H72: =H68/H16 -> 0.3313840156 | J72: =IF((AND(J16=0,J68=0)),0,(IF(AND(J16=0,J68>0),1,(J68/J16)))) -> 0.64 | K72: =IF((AND(K16=0,K68=0)),0,(IF(AND(K16=0,K68>0),1,(K68/K16)))) -> 0.4 | L72: 1 | M72: 0.2 | N72: 0.2857142857 | O72: 0.2 | P72: =P68/P16 -> 0.5052631579 | R72: 0.3783783784
V77: Alachua | W77: Oct | X77: 1
V78: Baker | W78: Nov | X78: 2
V79: Bay | W79: Dec | X79: 3
V80: Bradford | W80: Jan | X80: 4
V81: Brevard | W81: Feb | X81: 5
V82: Broward | W82: Mar | X82: 6
V83: Calhoun | W83: Apr | X83: 7
V84: Charlotte | W84: May | X84: 8
V85: Citrus | W85: Jun | X85: 9
V86: Clay | W86: Jul | X86: 10
V87: Collier | W87: Aug
V88: Columbia | W88: Sep
V89: Dade
V90: Desoto
V91: Dixie
V92: Duval
V93: Escambia
V94: Flagler
V95: Franklin
V96: Gadsden
V97: Gilchrist
V98: Glades
V99: Gulf
V100: Hamilton
V101: Hardee
V102: Hendry
V103: Hernando
V104: Highlands
V105: Hillsborough
V106: Holmes
V107: Indian River
V108: Jackson
V109: Jefferson
V110: Lafayette
V111: Lake
V112: Lee
V113: Leon
V114: Levy
V115: Liberty
V116: Madison
V117: Manatee
V118: Marion
V119: Martin
V120: Monroe
V121: Nassau
V122: Okaloosa
V123: Okeechobee
V124: Orange
V125: Osceola
V126: Palm Beach
V127: Pasco
V128: Pinellas
V129: Polk
V130: Putnam
V131: Santa Rosa
V132: Sarasota
V133: Seminole
V134: St. Johns
V135: St. Lucie
V136: Sumter
V137: Suwannee
V138: Taylor
V139: Union
V140: Volusia
V141: Wakulla
V142: Walton
V143: Washington

Sheet Timeliness Quarterly
B2: County Fiscal Year 2016 - 2017
B3: Timeliness Quarterly Report Form for CCOC
C5: Report Month of (Quarter Ending): | D5: ='Outputs Monthly'!D6:E6 -> Feb | F5: Contact: | G5: 65
C6: Version #: | D6: ='Outputs Monthly'!D7:E7 -> 1 | F6: Telephone: | G6: 306
C7: County: | D7: ='Outputs Monthly'!D8:E8 -> Brevard | F7: E-mail: | G7: =IF(ISBLANK('Outputs Monthly'!N8:P8),"",'Outputs Monthly'!N8) -> kim.reynolds@brevardclerk.us
A9: Timeliness Measures #1: Annual Projected % of new cases OPENED within X business days after initial documents are clocked in.
D10: Performance Measure Standard | E10: # Of Business Days | F10: 10/1/16 - 12/31/16 | G10: 1/1/17 - 3/31/17 | H10: 4/1/17 - 6/30/17 | I10: 7/1/17 - 9/30/17 | K10: =F10 -> 10/1/16 - 12/31/16 | M10: =G10 -> 1/1/17 - 3/31/17 | O10: =H10 -> 4/1/17 - 6/30/17 | Q10: =I10 -> 7/1/17 - 9/30/17
A11: A | B11: Criminal | F11: 1st Quarter | G11: 2nd Quarter | H11: 3rd Quarter | I11: 4th Quarter | J11: Year-to-Date | K11: Reason Code | L11: Comments / Actions to Improve | M11: Reason Code | N11: Comments / Actions to Improve | O11: Reason Code | P11: Comments / Actions to Improve | Q11: Reason Code | R11: Comments / Actions to Improve | T11: 1
A12: Circuit (defendants) | C12: Total # of defendants | D12: 0.8 | E12: 2 | F12: ='Outputs Monthly'!D18+'Outputs Monthly'!D22+'Outputs Monthly'!D26 -> 1971 | G12: ='Outputs Monthly'!D30+'Outputs Monthly'!D34+'Outputs Monthly'!D38 -> 1494 | H12: ='Outputs Monthly'!D42+'Outputs Monthly'!D46+'Outputs Monthly'!D50 -> 0 | I12: ='Outputs Monthly'!D54+'Outputs Monthly'!D58+'Outputs Monthly'!D62 -> 0 | J12: =SUM(F12:I12) -> 3465
C13: # within 2 business days | F13: 1940 | G13: 1465 | J13: =SUM(F13:I13) -> 3405 | T13: Staffing - Internal
C14: % mtg level | F14: =F13/F12 -> 0.9842719432 | G14: =G13/G12 -> 0.9805890228 | H14: =H13/H12 ->  | I14: =I13/I12 ->  | J14: =J13/J12 -> 0.9826839827 | T14: Staffing - External
A15: County (defendants) | C15: Total # of defendants | D15: 0.8 | E15: 3 | F15: ='Outputs Monthly'!E18+'Outputs Monthly'!E22+'Outputs Monthly'!E26 -> 2310 | G15: ='Outputs Monthly'!E30+'Outputs Monthly'!E34+'Outputs Monthly'!E38 -> 1627 | H15: ='Outputs Monthly'!E42+'Outputs Monthly'!E46+'Outputs Monthly'!E50 -> 0 | I15: ='Outputs Monthly'!E54+'Outputs Monthly'!E58+'Outputs Monthly'!E62 -> 0 | J15: 3937 | T15: Unfunded Mandates - External
C16: # within 3 business days | F16: 2231 | G16: 1610 | J16: 3841 | T16: Systems/Conversions - Internal
C17: % mtg level | F17: =F16/F15 -> 0.9658008658 | G17: =G16/G15 -> 0.9895513215 | H17: =H16/H15 ->  | I17: =I16/I15 ->  | J17: =J16/J15 -> 0.9756159512 | T17: Systems/Conversions - External
A18: Juvenile Delinquency (juveniles) | C18: Total # of juveniles | D18: 0.8 | E18: 2 | F18: ='Outputs Monthly'!F18+'Outputs Monthly'!F22+'Outputs Monthly'!F26 -> 469 | G18: ='Outputs Monthly'!F30+'Outputs Monthly'!F34+'Outputs Monthly'!F38 -> 312 | H18: ='Outputs Monthly'!F42+'Outputs Monthly'!F46+'Outputs Monthly'!F50 -> 0 | I18: ='Outputs Monthly'!F54+'Outputs Monthly'!F58+'Outputs Monthly'!F62 -> 0 | J18: 781
C19: # within 2 business days | F19: 440 | G19: 306 | J19: 746
C20: % mtg level | F20: =F19/F18 -> 0.9381663113 | G20: =G19/G18 -> 0.9807692308 | H20: =H19/H18 ->  | I20: =I19/I18 ->  | J20: =J19/J18 -> 0.9551856594 | ZZ20: PABS4.0
A21: Traffic (UTC) | C21: Total # UTC | D21: 0.8 | E21: 3 | F21: ='Outputs Monthly'!G18+'Outputs Monthly'!G22+'Outputs Monthly'!G26 -> 1542 | G21: ='Outputs Monthly'!G30+'Outputs Monthly'!G34+'Outputs Monthly'!G38 -> 1242 | H21: ='Outputs Monthly'!G42+'Outputs Monthly'!G46+'Outputs Monthly'!G50 -> 0 | I21: ='Outputs Monthly'!G54+'Outputs Monthly'!G58+'Outputs Monthly'!G62 -> 0 | J21: 2784
C22: # within 3 business days | F22: 1345 | G22: 1082 | J22: 2427
C23: % mtg level | F23: =F22/F21 -> 0.8722438392 | G23: =G22/G21 -> 0.8711755233 | H23: =H22/H21 ->  | I23: =I22/I21 ->  | J23: =J22/J21 -> 0.8717672414
A24: B | B24: Civil
A25: Circuit (cases) | C25: Total # of cases | D25: 0.8 | E25: 2 | F25: ='Outputs Monthly'!J18+'Outputs Monthly'!J22+'Outputs Monthly'!J26 -> 817 | G25: ='Outputs Monthly'!J30+'Outputs Monthly'!J34+'Outputs Monthly'!J38 -> 690 | H25: ='Outputs Monthly'!J42+'Outputs Monthly'!J46+'Outputs Monthly'!J50 -> 0 | I25: ='Outputs Monthly'!J54+'Outputs Monthly'!J58+'Outputs Monthly'!J62 -> 0 | J25: 1507
C26: # within 2 business days | F26: 753 | G26: 601 | J26: 1354
C27: % mtg level | F27: =F26/F25 -> 0.9216646267 | G27: =G26/G25 -> 0.8710144928 | H27: =H26/H25 ->  | I27: =I26/I25 ->  | J27: =J26/J25 -> 0.898473789
A28: County (cases) | C28: Total # of cases | D28: 0.8 | E28: 2 | F28: ='Outputs Monthly'!K18+'Outputs Monthly'!K22+'Outputs Monthly'!K26 -> 1992 | G28: ='Outputs Monthly'!K30+'Outputs Monthly'!K34+'Outputs Monthly'!K38 -> 1589 | H28: ='Outputs Monthly'!K42+'Outputs Monthly'!K46+'Outputs Monthly'!K50 -> 0 | I28: ='Outputs Monthly'!K54+'Outputs Monthly'!K58+'Outputs Monthly'!K62 -> 0 | J28: 3581
C29: # within 2 business days | F29: 1931 | G29: 1560 | J29: 3491
C30: % mtg level | F30: =F29/F28 -> 0.96937751 | G30: =G29/G28 -> 0.981749528 | H30: =H29/H28 ->  | I30: =I29/I28 ->  | J30: =J29/J28 -> 0.9748673555
A31: Traffic (UTC) | C31: Total # UTC | D31: 0.8 | E31: 4 | F31: ='Outputs Monthly'!L18+'Outputs Monthly'!L22+'Outputs Monthly'!L26 -> 8326 | G31: ='Outputs Monthly'!L30+'Outputs Monthly'!L34+'Outputs Monthly'!L38 -> 7606 | H31: ='Outputs Monthly'!L42+'Outputs Monthly'!L46+'Outputs Monthly'!L50 -> 0 | I31: ='Outputs Monthly'!L54+'Outputs Monthly'!L58+'Outputs Monthly'!L62 -> 0 | J31: 15932
C32: # within 4 business days | F32: 7759 | G32: 6662 | J32: 14421
C33: % mtg level | F33: =F32/F31 -> 0.9319000721 | G33: =G32/G31 -> 0.8758874573 | H33: =H32/H31 ->  | I33: =I32/I31 ->  | J33: =J32/J31 -> 0.9051594276
A34: Circuit Probate (cases) | C34: Total # of cases | D34: 0.8 | E34: 2 | F34: ='Outputs Monthly'!M18+'Outputs Monthly'!M22+'Outputs Monthly'!M26 -> 1184 | G34: ='Outputs Monthly'!M30+'Outputs Monthly'!M34+'Outputs Monthly'!M38 -> 816 | H34: ='Outputs Monthly'!M42+'Outputs Monthly'!M46+'Outputs Monthly'!M50 -> 0 | I34: ='Outputs Monthly'!M54+'Outputs Monthly'!M58+'Outputs Monthly'!M62 -> 0 | J34: 2000
C35: # within 2 business days | F35: 1146 | G35: 753 | J35: 1899
C36: % mtg level | F36: =F35/F34 -> 0.9679054054 | G36: =G35/G34 -> 0.9227941176 | H36: =H35/H34 ->  | I36: =I35/I34 ->  | J36: =J35/J34 -> 0.9495
A37: Family (cases) | C37: Total # of cases | D37: 0.8 | E37: 3 | F37: ='Outputs Monthly'!N18+'Outputs Monthly'!N22+'Outputs Monthly'!N26 -> 1664 | G37: ='Outputs Monthly'!N30+'Outputs Monthly'!N34+'Outputs Monthly'!N38 -> 1153 | H37: ='Outputs Monthly'!N42+'Outputs Monthly'!N46+'Outputs Monthly'!N50 -> 0 | I37: ='Outputs Monthly'!N54+'Outputs Monthly'!N58+'Outputs Monthly'!N62 -> 0 | J37: 2817
C38: # within 3 business days | F38: 1644 | G38: 1144 | J38: 2788
C39: % mtg level | F39: =F38/F37 -> 0.9879807692 | G39: =G38/G37 -> 0.9921942758 | H39: =H38/H37 ->  | I39: =I38/I37 ->  | J39: =J38/J37 -> 0.9897053603
A40: Juvenile Dependency (cases) | C40: Total # of cases | D40: 0.8 | E40: 2 | F40: ='Outputs Monthly'!O18+'Outputs Monthly'!O22+'Outputs Monthly'!O26 -> 93 | G40: ='Outputs Monthly'!O30+'Outputs Monthly'!O34+'Outputs Monthly'!O38 -> 65 | H40: ='Outputs Monthly'!O42+'Outputs Monthly'!O46+'Outputs Monthly'!O50 -> 0 | I40: ='Outputs Monthly'!O54+'Outputs Monthly'!O58+'Outputs Monthly'!O62 -> 0 | J40: 158
C41: # within 2 business days | F41: 93 | G41: 65 | J41: 158
C42: % mtg level | F42: =F41/F40 -> 1 | G42: =G41/G40 -> 1 | H42: =H41/H40 ->  | I42: =I41/I40 ->  | J42: =J41/J40 -> 1
A45: Timeliness Measures #2: Annual Projected % of docket entries entered within X business days after clock in/action taken date.
D46: Performance Measure Standard | E46: # of business days | F46: 10/1/16 - 12/31/16 | G46: 1/1/17 - 3/31/17 | H46: 4/1/17 - 6/30/17 | I46: 7/1/17 - 9/30/17 | K46: =F46 -> 10/1/16 - 12/31/16 | M46: =G46 -> 1/1/17 - 3/31/17 | O46: =H46 -> 4/1/17 - 6/30/17 | Q46: =I46 -> 7/1/17 - 9/30/17
A47: A | B47: Criminal | E47: 38991 | F47: 1st Quarter | G47: 2nd Quarter | H47: 3rd Quarter | I47: 4th Quarter | J47: Year-to-Date | K47: Reason Code | L47: Actions to Improve | M47: Reason Code | N47: Actions to Improve | O47: Reason Code | P47: Actions to Improve | Q47: Reason Code | R47: Actions to Improve
A48: Circuit (defendants) | C48: Total # of docket entries | D48: 0.8 | E48: 3 | F48: 77338 | G48: 59025 | J48: =SUM(F48:I48) -> 136363
C49: # within 3 business days | F49: 73995 | G49: 59223 | J49: =SUM(F49:I49) -> 133218
C50: % mtg level | F50: =F49/F48 -> 0.9567741602 | G50: =G49/G48 -> 1.003354511 | H50: =H49/H48 ->  | I50: =I49/I48 ->  | J50: =J49/J48 -> 0.976936559
A51: County (defendants) | C51: Total # of docket entries | D51: 0.8 | E51: 3 | F51: 40586 | G51: 27989 | J51: 68575
C52: # within 3 business days | F52: 38842 | G52: 26868 | J52: 65710
C53: % mtg level | F53: =F52/F51 -> 0.9570295176 | G53: =G52/G51 -> 0.9599485512 | H53: =H52/H51 ->  | I53: =I52/I51 ->  | J53: =J52/J51 -> 0.958220926
A54: Juvenile Delinquency (juveniles) | C54: Total # of docket entries | D54: 0.8 | E54: 3 | F54: 20766 | G54: 15053 | J54: 35819
C55: # within 3 business days | F55: 20706 | G55: 15006 | J55: 35712
C56: % mtg level | F56: =F55/F54 -> 0.9971106617 | G56: =G55/G54 -> 0.9968776988 | H56: =H55/H54 ->  | I56: =I55/I54 ->  | J56: =J55/J54 -> 0.9970127586
A57: Traffic (UTC) | C57: Total # of docket entries | D57: 0.8 | E57: 3 | F57: 31938 | G57: 23829 | J57: 55767
C58: # within 3 business days | F58: 30394 | G58: 22698 | J58: 53092
C59: % mtg level | F59: =F58/F57 -> 0.9516563341 | G59: =G58/G57 -> 0.9525368249 | H59: =H58/H57 ->  | I59: =I58/I57 ->  | J59: =J58/J57 -> 0.9520325641
A60: B | B60: Civil
A61: Circuit (cases) | C61: Total # of docket entries | D61: 0.8 | E61: 3 | F61: 39064 | G61: 28510 | J61: 67574
C62: # within 3 business days | F62: 38560 | G62: 27976 | J62: 66536
C63: % mtg level | F63: =F62/F61 -> 0.9870980954 | G63: =G62/G61 -> 0.9812697299 | H63: =H62/H61 ->  | I63: =I62/I61 ->  | J63: =J62/J61 -> 0.9846390624
A64: County (cases) | C64: Total # of docket entries | D64: 0.8 | E64: 3 | F64: 21224 | G64: 15004 | J64: 36228
C65: # within 3 business days | F65: 20808 | G65: 14834 | J65: 35642
C66: % mtg level | F66: =F65/F64 -> 0.9803995477 | G66: =G65/G64 -> 0.9886696881 | H66: =H65/H64 ->  | I66: =I65/I64 ->  | J66: =J65/J64 -> 0.983824666
A67: Traffic (UTC) | C67: Total # of docket entries | D67: 0.8 | E67: 4 | F67: 17870 | G67: 16950 | J67: 34820
C68: # within 4 business days | F68: 16764 | G68: 15476 | J68: 32240
C69: % mtg level | F69: =F68/F67 -> 0.9381085618 | G69: =G68/G67 -> 0.9130383481 | H69: =H68/H67 ->  | I69: =I68/I67 ->  | J69: =J68/J67 -> 0.9259046525
A70: Circuit Probate (cases) | C70: Total # of docket entries | D70: 0.8 | E70: 3 | F70: 17980 | G70: 12387 | J70: 30367
C71: # within 3 business days | F71: 17579 | G71: 12164 | J71: 29743
C72: % mtg level | F72: =F71/F70 -> 0.9776974416 | G72: =G71/G70 -> 0.9819972552 | H72: =H71/H70 ->  | I72: =I71/I70 ->  | J72: =J71/J70 -> 0.9794513781
A73: Family (cases) | C73: Total # of docket entries | D73: 0.8 | E73: 3 | F73: 40506 | G73: 27854 | J73: 68360
C74: # within 3 business days | F74: 39235 | G74: 27579 | J74: 66814
C75: % mtg level | F75: =F74/F73 -> 0.9686219326 | G75: =G74/G73 -> 0.9901270913 | H75: =H74/H73 ->  | I75: =I74/I73 ->  | J75: =J74/J73 -> 0.9773844353
A76: Juvenile Dependency (juveniles) | C76: Total # of docket entries | D76: 0.8 | E76: 3 | F76: 7774 | G76: 5652 | J76: 13426
C77: # within 3 business days | F77: 7759 | G77: 5639 | J77: 13398
C78: % mtg level | F78: =F77/F76 -> 0.9980704914 | G78: =G77/G76 -> 0.9976999292 | H78: =H77/H76 ->  | I78: =I77/I76 ->  | J78: =J77/J76 -> 0.9979144943
B81: Notes:
B82: 1.) Reason Codes for Timeliness have been updated to include Internal and External qualifiers. Use the "Comments / Action to Improve" field to further explain why the standard was not met for an "External" or Internal" reason.
C83: If the the reason was "Internal", include an expected timeframe the reason will be corrected.
B84: 2 Cases/Defendants Output numbers are imported from the Outputs Monthly tab of this workbook.

Sheet CAP Count Summary (hidden)
A1: County | B1: TIMELINESS STANDARD ONE (New Cases Opened) | W1: TIMELINESS STANDARD TWO (Docket Entries Processed) | AR1: Sent Date
B2: Circuit Criminal Reason | C2: Improve Action | D2: County Criminal Reason | E2: Improve Action | F2: Juvenile Delinquency Reason | G2: Improve Action | H2: Criminal Traffic Reason | I2: Improve Action | J2: Circuit Civil Reason | K2: Improve Action | L2: County Civil Reason | M2: Improve Action | N2: Civil Traffic Reason | O2: Improve Action | P2: Probate Reason | Q2: Improve Action | R2: Family Reason | S2: Improve Action | T2: Juvenile Dependency Reason | U2: Improve Action | W2: Circuit Criminal Reason | X2: Improve Action | Y2: County Criminal Reason | Z2: Improve Action | AA2: Juvenile Delinquency Reason | AB2: Improve Action | AC2: Criminal Traffic Reason | AD2: Improve Action | AE2: Circuit Civil Reason | AF2: Improve Action | AG2: County Civil Reason | AH2: Improve Action | AI2: Civil Traffic Reason | AJ2: Improve Action | AK2: Probate Reason | AL2: Improve Action | AM2: Family Reason | AN2: Improve Action | AO2: Juvenile Dependency Reason | AP2: Improve Action
A4: Alachua | AR4: 20140220
A5: Baker | AR5: 20140207
A6: Bay | AR6: 20140218
A7: Bradford | AA7: Procedural | AB7: We are a small county with several Supreme Court death warrant appeals that had priority. | AO7: Procedural | AP7: We are a small county with several Supreme Court death warrant appeals that had priority. | AR7: 20140218
A8: Brevard | AR8: 20140218
A9: Broward | P9: E-Filing | Q9: A high percentage of cases are rejected. When cases are resubmitted, the calculation for timeliness is based on the original file date. | AO9: Systems | AP9: The division is still adjusting to new case maintenance system. E-filing should assist with improving the timeliness. | AR9: 20140218
A10: Calhoun | AR10: 20140217
A11: Charlotte | AR11: 20140219
A12: Citrus | AR12: 20140206
A13: Clay | AR13: 20140218
A14: Collier | AR14: 20140220
A15: Columbia | T15: Staffing - Insufficient Personnel | U15: This is a one employee department. Employees in other departments will be used to cover this when employee is out. | AR15: 20140219
A16: Dade | D16: Staffing - Training Required | E16: Training efforts have been completed. We anticipate rate will improve in the next quarter. | AR16: 20140219
A17: Desoto | AR17: 20140206
A18: Dixie
A19: Duval | AR19: 20140225
A20: Escambia | AA20: Staffing - Training Required | AB20: Additional cross training will occur immediatley | AR20: 20140210
A21: Flagler | AR21: 20140214
A22: Franklin | AR22: 20140212
A23: Gadsden | J23: E-Filing | K23: As the problems get worked out this will improve. | AR23: 20140218
A24: Gilchrist
A25: Glades | AI25: Systems | AJ25: Clericus was implemented 9/27/2013 and we are still learning the system. | AR25: 20140224
A26: Gulf | AR26: 20140220
A27: Hamilton | AR27: 20140211
A28: Hardee | AR28: 20140220
A29: Hendry | AR29: 20140219
A30: Hernando | AR30: 20140220
A31: Highlands | AR31: 20140206
A32: Hillsborough | AR32: 20140220
A33: Holmes | AR33: 20140219
A34: Indian River | AR34: 20140208
A35: Jackson | AR35: 20140214
A36: Jefferson | AR36: 20140210
A37: Lafayette | AR37: 20140219
A38: Lake | AR38: 20140219
A39: Lee | AR39: 20140218
A40: Leon | AR40: 20140227
A41: LEVY | AR41: 20140217
A42: Liberty | B42: Staffing - Training Required | C42: Due to the sudden retirement of a 30 year employee, we are training new staff. | D42: Staffing - Training Required | E42: Due to the sudden retirement of a 30 year employee, we are training new staff. | AA42: Staffing - Training Required | AB42: Due to the sudden retirement of a 30 year employee, we are training new staff. | AK42: Staffing - Training Required | AL42: Due to the sudden retirement of a 30 year employee, we are training new staff. | AR42: 20140211
A43: Madison | AR43: 20140214
A44: Manatee | AR44: 20140220
A45: Marion | H45: Procedural | I45: Electornic citations led to errors in entering zeros as O's and O's as zeros in the citation number. We have asked the agencies to use a / thru zeros and staff to be more careful in keying. | AE45: E-Filing | AF45: Established a mandatory 1.5 hrs/day for all civil staff to process efilings | AR45: 20140211
A46: Martin | AR46: 20140217
A47: Monroe | AR47: 20140213
A48: NASSAU | AR48: 20140220
A49: Okaloosa | AR49: 20140211
A50: Okeechobee | AR50: 20140217
A51: Orange | AR51: 20140219
A52: Osceola | N52: Systems | O52: We experienced problems entering traffic citations with our new Case Management System. These problems are being corrected in our next release that will go live on 1/21/2014. Also, in February we go live with Ecitations and this will help speed up the process. | AR52: 20140219
A53: Palm Beach | AR53: 20140213
A54: Pasco | AR54: 20140220
A55: Pinellas | AR55: 20140220
A56: Polk | P56: Procedural | Q56: Standards reviewed with staff when processing paper filings. eFiled cases were the focus when it should've been paper & electronic equally. Cases will be monitored more closely by management. | AR56: 20140220
A57: Putnam | L57: Staffing - Insufficient Personnel | M57: Incidental - Bereavement & Sick Leave | P57: Staffing - Training Required | Q57: Reorganizing Office Staff at this Time | AE57: Staffing - Insufficient Personnel | AF57: Incidental - Bereavement & Sick Leave | AG57: Staffing - Insufficient Personnel | AH57: Incidental - Bereavement & Sick Leave | AK57: Staffing - Insufficient Personnel | AL57: Incidental - Bereavement & Sick Leave | AR57: 20140218
A58: Santa Rosa | AR58: 20140219
A59: Sarasota | AR59: 20140219
A60: Seminole | AR60: 20140207
A61: St. Johns | AR61: 20140214
A62: St. Lucie | AR62: 20140210
A63: Sumter | B63: Staffing - Insufficient Personnel | C63: Additional staff being hired to work in felony division to cover increased filings | AR63: 20140210
A64: Suwannee | Y64: Staffing - Training Required | Z64: Additional training on meeting Performance Measures | AA64: Staffing - Training Required | AB64: Additional training on meeting Performance Measures | AC64: Staffing - Training Required | AD64: Additional training on meeting Performance Measures | AR64: 20140217
A65: Taylor | J65: E-Filing | K65: Correct issues of filings not moving from eportal to CMS | AR65: 20140211
A66: Union | AR66: 20140219
A67: Volusia | AR67: 20140218
A68: Wakulla | AR68: 20140214
A69: Walton | AR69: 20140218
A70: Washington | W70: Other | X70: Coversion, server, and move downtime | AR70: 20140217

Sheet Action Plan Summary
A2: County Fiscal Year 2016 - 2017
A3: Timeliness Quarterly Action Plan Form for CCOC
C5: Report Month of (Quarter Ending): | D5: ='Outputs Monthly'!D6:E6 -> Feb | F5: Contact: | G5: =IF(ISBLANK('Timeliness Quarterly'!G5:H5),'Outputs Monthly'!G8:H8,'Timeliness Quarterly'!G5:H5) -> 65
C6: Version #: | D6: ='Outputs Monthly'!D7:E7 -> 1 | F6: Telephone: | G6: =IF(ISBLANK('Timeliness Quarterly'!G6:H6),'Outputs Monthly'!K8,'Timeliness Quarterly'!G6) -> 306
C7: County: | D7: ='Outputs Monthly'!D8:E8 -> Brevard | F7: E-mail: | G7: =IF(ISBLANK('Timeliness Quarterly'!G7:I7),'Outputs Monthly'!N8,'Timeliness Quarterly'!G7) -> kim.reynolds@brevardclerk.us
A9: Timeliness Measeure # 1 | B9: Quarter | C9: CCOC Standard | D9: ='Timeliness Quarterly'!E10 -> # Of Business Days | E9: Clerk Performance | F9: Reason Code | G9: Current Actions to Improve
A10: Circuit Criminal | B10: ='Timeliness Quarterly'!$F$10 -> 10/1/16 - 12/31/16 | C10: ='Timeliness Quarterly'!$D$12 -> 0.8 | D10: ='Timeliness Quarterly'!$E$12 -> 2 | E10: =IF(IFERROR('Timeliness Quarterly'!F$14,"error")="error","",IF('Timeliness Quarterly'!F$14<'Timeliness Quarterly'!$D$12,'Timeliness Quarterly'!F$14,"")) ->  | F10: =IF(IFERROR('Timeliness Quarterly'!$K$12,"error")="error","",IF('Timeliness Quarterly'!$K$12=0,"",'Timeliness Quarterly'!$K$12)) ->  | G10: =IF(IFERROR('Timeliness Quarterly'!$L$12,"error")="error","",IF('Timeliness Quarterly'!$L$12=0,"",'Timeliness Quarterly'!$L$12)) -> 
B11: ='Timeliness Quarterly'!$G$10 -> 1/1/17 - 3/31/17 | C11: ='Timeliness Quarterly'!$D$12 -> 0.8 | D11: ='Timeliness Quarterly'!$E$12 -> 2 | E11: =IF(IFERROR('Timeliness Quarterly'!G$14,"error")="error","",IF('Timeliness Quarterly'!G$14<'Timeliness Quarterly'!$D$12,'Timeliness Quarterly'!G$14,"")) ->  | F11: =IF(IFERROR('Timeliness Quarterly'!$M$12,"error")="error","",IF('Timeliness Quarterly'!$M$12=0,"",'Timeliness Quarterly'!$M$12)) ->  | G11: =IF(IFERROR('Timeliness Quarterly'!$N$12,"error")="error","",IF('Timeliness Quarterly'!$N$12=0,"",'Timeliness Quarterly'!$N$12)) -> 
B12: ='Timeliness Quarterly'!$H$10 -> 4/1/17 - 6/30/17 | C12: ='Timeliness Quarterly'!$D$12 -> 0.8 | D12: ='Timeliness Quarterly'!$E$12 -> 2 | E12: =IF(IFERROR('Timeliness Quarterly'!H$14,"error")="error","",IF('Timeliness Quarterly'!H$14<'Timeliness Quarterly'!$D$12,'Timeliness Quarterly'!H$14,"")) ->  | F12: =IF(IFERROR('Timeliness Quarterly'!$O$12,"error")="error","",IF('Timeliness Quarterly'!$O$12=0,"",'Timeliness Quarterly'!$O$12)) ->  | G12: =IF(IFERROR('Timeliness Quarterly'!$P$12,"error")="error","",IF('Timeliness Quarterly'!$P$12=0,"",'Timeliness Quarterly'!$P$12)) -> 
B13: ='Timeliness Quarterly'!$I$10 -> 7/1/17 - 9/30/17 | C13: ='Timeliness Quarterly'!$D$12 -> 0.8 | D13: ='Timeliness Quarterly'!$E$12 -> 2 | E13: =IF(IFERROR('Timeliness Quarterly'!I$14,"error")="error","",IF('Timeliness Quarterly'!I$14<'Timeliness Quarterly'!$D$12,'Timeliness Quarterly'!I$14,"")) ->  | F13: =IF(IFERROR('Timeliness Quarterly'!$Q$12,"error")="error","",IF('Timeliness Quarterly'!$Q$12=0,"",'Timeliness Quarterly'!$Q$12)) ->  | G13: =IF(IFERROR('Timeliness Quarterly'!$R$12,"error")="error","",IF('Timeliness Quarterly'!$R$12=0,"",'Timeliness Quarterly'!$R$12)) -> 
A14: County Criminal | B14: ='Timeliness Quarterly'!$F$10 -> 10/1/16 - 12/31/16 | C14: ='Timeliness Quarterly'!$D$15 -> 0.8 | D14: ='Timeliness Quarterly'!$E$15 -> 3 | E14: =IF(IFERROR('Timeliness Quarterly'!F$17,"error")="error","",IF('Timeliness Quarterly'!F$17<'Timeliness Quarterly'!$D$15,'Timeliness Quarterly'!F$17,"")) ->  | F14: =IF(IFERROR('Timeliness Quarterly'!$K$15,"error")="error","",IF('Timeliness Quarterly'!$K$15=0,"",'Timeliness Quarterly'!$K$15)) ->  | G14: =IF(IFERROR('Timeliness Quarterly'!$L$15,"error")="error","",IF('Timeliness Quarterly'!$L$15=0,"",'Timeliness Quarterly'!$L$15)) -> 
B15: ='Timeliness Quarterly'!$G$10 -> 1/1/17 - 3/31/17 | C15: ='Timeliness Quarterly'!$D$15 -> 0.8 | D15: ='Timeliness Quarterly'!$E$15 -> 3 | E15: =IF(IFERROR('Timeliness Quarterly'!G$17,"error")="error","",IF('Timeliness Quarterly'!G$17<'Timeliness Quarterly'!$D$15,'Timeliness Quarterly'!G$17,"")) ->  | F15: =IF(IFERROR('Timeliness Quarterly'!$M$15,"error")="error","",IF('Timeliness Quarterly'!$M$15=0,"",'Timeliness Quarterly'!$M$15)) ->  | G15: =IF(IFERROR('Timeliness Quarterly'!$N$15,"error")="error","",IF('Timeliness Quarterly'!$N$15=0,"",'Timeliness Quarterly'!$N$15)) -> 
B16: ='Timeliness Quarterly'!$H$10 -> 4/1/17 - 6/30/17 | C16: ='Timeliness Quarterly'!$D$15 -> 0.8 | D16: ='Timeliness Quarterly'!$E$15 -> 3 | E16: =IF(IFERROR('Timeliness Quarterly'!H$17,"error")="error","",IF('Timeliness Quarterly'!H$17<'Timeliness Quarterly'!$D$15,'Timeliness Quarterly'!H$17,"")) ->  | F16: =IF(IFERROR('Timeliness Quarterly'!$O$15,"error")="error","",IF('Timeliness Quarterly'!$O$15=0,"",'Timeliness Quarterly'!$O$15)) ->  | G16: =IF(IFERROR('Timeliness Quarterly'!$P$15,"error")="error","",IF('Timeliness Quarterly'!$P$15=0,"",'Timeliness Quarterly'!$P$15)) -> 
B17: ='Timeliness Quarterly'!$I$10 -> 7/1/17 - 9/30/17 | C17: ='Timeliness Quarterly'!$D$15 -> 0.8 | D17: ='Timeliness Quarterly'!$E$15 -> 3 | E17: =IF(IFERROR('Timeliness Quarterly'!I$17,"error")="error","",IF('Timeliness Quarterly'!I$17<'Timeliness Quarterly'!$D$15,'Timeliness Quarterly'!I$17,"")) ->  | F17: =IF(IFERROR('Timeliness Quarterly'!$Q$15,"error")="error","",IF('Timeliness Quarterly'!$Q$15=0,"",'Timeliness Quarterly'!$Q$15)) ->  | G17: =IF(IFERROR('Timeliness Quarterly'!$R$15,"error")="error","",IF('Timeliness Quarterly'!$R$15=0,"",'Timeliness Quarterly'!$R$15)) -> 
A18: Juvenile Delinquency | B18: ='Timeliness Quarterly'!$F$10 -> 10/1/16 - 12/31/16 | C18: ='Timeliness Quarterly'!$D$18 -> 0.8 | D18: ='Timeliness Quarterly'!$E$18 -> 2 | E18: =IF(IFERROR('Timeliness Quarterly'!F$20,"error")="error","",IF('Timeliness Quarterly'!F$20<'Timeliness Quarterly'!$D$18,'Timeliness Quarterly'!F$20,"")) ->  | F18: =IF(IFERROR('Timeliness Quarterly'!$K$18,"error")="error","",IF('Timeliness Quarterly'!$K$18=0,"",'Timeliness Quarterly'!$K$18)) ->  | G18: =IF(IFERROR('Timeliness Quarterly'!$L$18,"error")="error","",IF('Timeliness Quarterly'!$L$18=0,"",'Timeliness Quarterly'!$L$18)) -> 
B19: ='Timeliness Quarterly'!$G$10 -> 1/1/17 - 3/31/17 | C19: ='Timeliness Quarterly'!$D$18 -> 0.8 | D19: ='Timeliness Quarterly'!$E$18 -> 2 | E19: =IF(IFERROR('Timeliness Quarterly'!G$20,"error")="error","",IF('Timeliness Quarterly'!G$20<'Timeliness Quarterly'!$D$18,'Timeliness Quarterly'!G$20,"")) ->  | F19: =IF(IFERROR('Timeliness Quarterly'!$M$18,"error")="error","",IF('Timeliness Quarterly'!$M$18=0,"",'Timeliness Quarterly'!$M$18)) ->  | G19: =IF(IFERROR('Timeliness Quarterly'!$N$18,"error")="error","",IF('Timeliness Quarterly'!$N$18=0,"",'Timeliness Quarterly'!$N$18)) -> 
B20: ='Timeliness Quarterly'!$H$10 -> 4/1/17 - 6/30/17 | C20: ='Timeliness Quarterly'!$D$18 -> 0.8 | D20: ='Timeliness Quarterly'!$E$18 -> 2 | E20: =IF(IFERROR('Timeliness Quarterly'!H$20,"error")="error","",IF('Timeliness Quarterly'!H$20<'Timeliness Quarterly'!$D$18,'Timeliness Quarterly'!H$20,"")) ->  | F20: =IF(IFERROR('Timeliness Quarterly'!$O$18,"error")="error","",IF('Timeliness Quarterly'!$O$18=0,"",'Timeliness Quarterly'!$O$18)) ->  | G20: =IF(IFERROR('Timeliness Quarterly'!$P$18,"error")="error","",IF('Timeliness Quarterly'!$P$18=0,"",'Timeliness Quarterly'!$P$18)) -> 
B21: ='Timeliness Quarterly'!$I$10 -> 7/1/17 - 9/30/17 | C21: ='Timeliness Quarterly'!$D$18 -> 0.8 | D21: ='Timeliness Quarterly'!$E$18 -> 2 | E21: =IF(IFERROR('Timeliness Quarterly'!I$20,"error")="error","",IF('Timeliness Quarterly'!I$20<'Timeliness Quarterly'!$D$18,'Timeliness Quarterly'!I$20,"")) ->  | F21: =IF(IFERROR('Timeliness Quarterly'!$Q$18,"error")="error","",IF('Timeliness Quarterly'!$Q$18=0,"",'Timeliness Quarterly'!$Q$18)) ->  | G21: =IF(IFERROR('Timeliness Quarterly'!$R$18,"error")="error","",IF('Timeliness Quarterly'!$R$18=0,"",'Timeliness Quarterly'!$R$18)) -> 
A22: Criminal Traffic | B22: ='Timeliness Quarterly'!$F$10 -> 10/1/16 - 12/31/16 | C22: ='Timeliness Quarterly'!$D$21 -> 0.8 | D22: ='Timeliness Quarterly'!$E$21 -> 3 | E22: =IF(IFERROR('Timeliness Quarterly'!F$23,"error")="error","",IF('Timeliness Quarterly'!F$23<'Timeliness Quarterly'!$D$21,'Timeliness Quarterly'!F$23,"")) ->  | F22: =IF(IFERROR('Timeliness Quarterly'!$K$21,"error")="error","",IF('Timeliness Quarterly'!$K$21=0,"",'Timeliness Quarterly'!$K$21)) ->  | G22: =IF(IFERROR('Timeliness Quarterly'!$L$21,"error")="error","",IF('Timeliness Quarterly'!$L$21=0,"",'Timeliness Quarterly'!$L$21)) -> 
B23: ='Timeliness Quarterly'!$G$10 -> 1/1/17 - 3/31/17 | C23: ='Timeliness Quarterly'!$D$21 -> 0.8 | D23: ='Timeliness Quarterly'!$E$21 -> 3 | E23: =IF(IFERROR('Timeliness Quarterly'!G$23,"error")="error","",IF('Timeliness Quarterly'!G$23<'Timeliness Quarterly'!$D$21,'Timeliness Quarterly'!G$23,"")) ->  | F23: =IF(IFERROR('Timeliness Quarterly'!$M$21,"error")="error","",IF('Timeliness Quarterly'!$M$21=0,"",'Timeliness Quarterly'!$M$21)) ->  | G23: =IF(IFERROR('Timeliness Quarterly'!$N$21,"error")="error","",IF('Timeliness Quarterly'!$N$21=0,"",'Timeliness Quarterly'!$N$21)) -> 
B24: ='Timeliness Quarterly'!$H$10 -> 4/1/17 - 6/30/17 | C24: ='Timeliness Quarterly'!$D$21 -> 0.8 | D24: ='Timeliness Quarterly'!$E$21 -> 3 | E24: =IF(IFERROR('Timeliness Quarterly'!H$23,"error")="error","",IF('Timeliness Quarterly'!H$23<'Timeliness Quarterly'!$D$21,'Timeliness Quarterly'!H$23,"")) ->  | F24: =IF(IFERROR('Timeliness Quarterly'!$O$21,"error")="error","",IF('Timeliness Quarterly'!$O$21=0,"",'Timeliness Quarterly'!$O$21)) ->  | G24: =IF(IFERROR('Timeliness Quarterly'!$P$21,"error")="error","",IF('Timeliness Quarterly'!$P$21=0,"",'Timeliness Quarterly'!$P$21)) -> 
B25: ='Timeliness Quarterly'!$I$10 -> 7/1/17 - 9/30/17 | C25: ='Timeliness Quarterly'!$D$21 -> 0.8 | D25: ='Timeliness Quarterly'!$E$21 -> 3 | E25: =IF(IFERROR('Timeliness Quarterly'!I$23,"error")="error","",IF('Timeliness Quarterly'!I$23<'Timeliness Quarterly'!$D$21,'Timeliness Quarterly'!I$23,"")) ->  | F25: =IF(IFERROR('Timeliness Quarterly'!$Q$21,"error")="error","",IF('Timeliness Quarterly'!$Q$21=0,"",'Timeliness Quarterly'!$Q$21)) ->  | G25: =IF(IFERROR('Timeliness Quarterly'!$R$21,"error")="error","",IF('Timeliness Quarterly'!$R$21=0,"",'Timeliness Quarterly'!$R$21)) -> 
A26: Circuit Civil | B26: ='Timeliness Quarterly'!$F$10 -> 10/1/16 - 12/31/16 | C26: ='Timeliness Quarterly'!$D$25 -> 0.8 | D26: ='Timeliness Quarterly'!$E$25 -> 2 | E26: =IF(IFERROR('Timeliness Quarterly'!F$27,"error")="error","",IF('Timeliness Quarterly'!F$27<'Timeliness Quarterly'!$D$25,'Timeliness Quarterly'!F$27,"")) ->  | F26: =IF(IFERROR('Timeliness Quarterly'!$K$25,"error")="error","",IF('Timeliness Quarterly'!$K$25=0,"",'Timeliness Quarterly'!$K$25)) ->  | G26: =IF(IFERROR('Timeliness Quarterly'!$L$25,"error")="error","",IF('Timeliness Quarterly'!$L$25=0,"",'Timeliness Quarterly'!$L$25)) -> 
B27: ='Timeliness Quarterly'!$G$10 -> 1/1/17 - 3/31/17 | C27: ='Timeliness Quarterly'!$D$25 -> 0.8 | D27: ='Timeliness Quarterly'!$E$25 -> 2 | E27: =IF(IFERROR('Timeliness Quarterly'!G$27,"error")="error","",IF('Timeliness Quarterly'!G$27<'Timeliness Quarterly'!$D$25,'Timeliness Quarterly'!G$27,"")) ->  | F27: =IF(IFERROR('Timeliness Quarterly'!$M$25,"error")="error","",IF('Timeliness Quarterly'!$M$25=0,"",'Timeliness Quarterly'!$M$25)) ->  | G27: =IF(IFERROR('Timeliness Quarterly'!$N$25,"error")="error","",IF('Timeliness Quarterly'!$N$25=0,"",'Timeliness Quarterly'!$N$25)) -> 
B28: ='Timeliness Quarterly'!$H$10 -> 4/1/17 - 6/30/17 | C28: ='Timeliness Quarterly'!$D$25 -> 0.8 | D28: ='Timeliness Quarterly'!$E$25 -> 2 | E28: =IF(IFERROR('Timeliness Quarterly'!H$27,"error")="error","",IF('Timeliness Quarterly'!H$27<'Timeliness Quarterly'!$D$25,'Timeliness Quarterly'!H$27,"")) ->  | F28: =IF(IFERROR('Timeliness Quarterly'!$O$25,"error")="error","",IF('Timeliness Quarterly'!$O$25=0,"",'Timeliness Quarterly'!$O$25)) ->  | G28: =IF(IFERROR('Timeliness Quarterly'!$P$25,"error")="error","",IF('Timeliness Quarterly'!$P$25=0,"",'Timeliness Quarterly'!$P$25)) -> 
B29: ='Timeliness Quarterly'!$I$10 -> 7/1/17 - 9/30/17 | C29: ='Timeliness Quarterly'!$D$25 -> 0.8 | D29: ='Timeliness Quarterly'!$E$25 -> 2 | E29: =IF(IFERROR('Timeliness Quarterly'!I$27,"error")="error","",IF('Timeliness Quarterly'!I$27<'Timeliness Quarterly'!$D$25,'Timeliness Quarterly'!I$27,"")) ->  | F29: =IF(IFERROR('Timeliness Quarterly'!$Q$25,"error")="error","",IF('Timeliness Quarterly'!$Q$25=0,"",'Timeliness Quarterly'!$Q$25)) ->  | G29: =IF(IFERROR('Timeliness Quarterly'!$R$25,"error")="error","",IF('Timeliness Quarterly'!$R$25=0,"",'Timeliness Quarterly'!$R$25)) -> 
A30: County Civil | B30: ='Timeliness Quarterly'!$F$10 -> 10/1/16 - 12/31/16 | C30: ='Timeliness Quarterly'!$D$28 -> 0.8 | D30: ='Timeliness Quarterly'!$E$28 -> 2 | E30: =IF(IFERROR('Timeliness Quarterly'!F$30,"error")="error","",IF('Timeliness Quarterly'!F$30<'Timeliness Quarterly'!$D$28,'Timeliness Quarterly'!F$30,"")) ->  | F30: =IF(IFERROR('Timeliness Quarterly'!$K$28,"error")="error","",IF('Timeliness Quarterly'!$K$28=0,"",'Timeliness Quarterly'!$K$28)) ->  | G30: =IF(IFERROR('Timeliness Quarterly'!$L$28,"error")="error","",IF('Timeliness Quarterly'!$L$28=0,"",'Timeliness Quarterly'!$L$28)) -> 
B31: ='Timeliness Quarterly'!$G$10 -> 1/1/17 - 3/31/17 | C31: ='Timeliness Quarterly'!$D$28 -> 0.8 | D31: ='Timeliness Quarterly'!$E$28 -> 2 | E31: =IF(IFERROR('Timeliness Quarterly'!G$30,"error")="error","",IF('Timeliness Quarterly'!G$30<'Timeliness Quarterly'!$D$28,'Timeliness Quarterly'!G$30,"")) ->  | F31: =IF(IFERROR('Timeliness Quarterly'!$M$28,"error")="error","",IF('Timeliness Quarterly'!$M$28=0,"",'Timeliness Quarterly'!$M$28)) ->  | G31: =IF(IFERROR('Timeliness Quarterly'!$N$28,"error")="error","",IF('Timeliness Quarterly'!$N$28=0,"",'Timeliness Quarterly'!$N$28)) -> 
B32: ='Timeliness Quarterly'!$H$10 -> 4/1/17 - 6/30/17 | C32: ='Timeliness Quarterly'!$D$28 -> 0.8 | D32: ='Timeliness Quarterly'!$E$28 -> 2 | E32: =IF(IFERROR('Timeliness Quarterly'!H$30,"error")="error","",IF('Timeliness Quarterly'!H$30<'Timeliness Quarterly'!$D$28,'Timeliness Quarterly'!H$30,"")) ->  | F32: =IF(IFERROR('Timeliness Quarterly'!$O$28,"error")="error","",IF('Timeliness Quarterly'!$O$28=0,"",'Timeliness Quarterly'!$O$28)) ->  | G32: =IF(IFERROR('Timeliness Quarterly'!$P$28,"error")="error","",IF('Timeliness Quarterly'!$P$28=0,"",'Timeliness Quarterly'!$P$28)) -> 
B33: ='Timeliness Quarterly'!$I$10 -> 7/1/17 - 9/30/17 | C33: ='Timeliness Quarterly'!$D$28 -> 0.8 | D33: ='Timeliness Quarterly'!$E$28 -> 2 | E33: =IF(IFERROR('Timeliness Quarterly'!I$30,"error")="error","",IF('Timeliness Quarterly'!I$30<'Timeliness Quarterly'!$D$28,'Timeliness Quarterly'!I$30,"")) ->  | F33: =IF(IFERROR('Timeliness Quarterly'!$Q$28,"error")="error","",IF('Timeliness Quarterly'!$Q$28=0,"",'Timeliness Quarterly'!$Q$28)) ->  | G33: =IF(IFERROR('Timeliness Quarterly'!$R$28,"error")="error","",IF('Timeliness Quarterly'!$R$28=0,"",'Timeliness Quarterly'!$R$28)) -> 
A34: Civil Traffic | B34: ='Timeliness Quarterly'!$F$10 -> 10/1/16 - 12/31/16 | C34: ='Timeliness Quarterly'!$D$31 -> 0.8 | D34: ='Timeliness Quarterly'!$E$31 -> 4 | E34: =IF(IFERROR('Timeliness Quarterly'!F$33,"error")="error","",IF('Timeliness Quarterly'!F$33<'Timeliness Quarterly'!$D$31,'Timeliness Quarterly'!F$33,"")) ->  | F34: =IF(IFERROR('Timeliness Quarterly'!$K$31,"error")="error","",IF('Timeliness Quarterly'!$K$31=0,"",'Timeliness Quarterly'!$K$31)) ->  | G34: =IF(IFERROR('Timeliness Quarterly'!$L$31,"error")="error","",IF('Timeliness Quarterly'!$L$31=0,"",'Timeliness Quarterly'!$L$31)) -> 
B35: ='Timeliness Quarterly'!$G$10 -> 1/1/17 - 3/31/17 | C35: ='Timeliness Quarterly'!$D$31 -> 0.8 | D35: ='Timeliness Quarterly'!$E$31 -> 4 | E35: =IF(IFERROR('Timeliness Quarterly'!G$33,"error")="error","",IF('Timeliness Quarterly'!G$33<'Timeliness Quarterly'!$D$31,'Timeliness Quarterly'!G$33,"")) ->  | F35: =IF(IFERROR('Timeliness Quarterly'!$M$31,"error")="error","",IF('Timeliness Quarterly'!$M$31=0,"",'Timeliness Quarterly'!$M$31)) ->  | G35: =IF(IFERROR('Timeliness Quarterly'!$N$31,"error")="error","",IF('Timeliness Quarterly'!$N$31=0,"",'Timeliness Quarterly'!$N$31)) -> 
B36: ='Timeliness Quarterly'!$H$10 -> 4/1/17 - 6/30/17 | C36: ='Timeliness Quarterly'!$D$31 -> 0.8 | D36: ='Timeliness Quarterly'!$E$31 -> 4 | E36: =IF(IFERROR('Timeliness Quarterly'!H$33,"error")="error","",IF('Timeliness Quarterly'!H$33<'Timeliness Quarterly'!$D$31,'Timeliness Quarterly'!H$33,"")) ->  | F36: =IF(IFERROR('Timeliness Quarterly'!$O$31,"error")="error","",IF('Timeliness Quarterly'!$O$31=0,"",'Timeliness Quarterly'!$O$31)) ->  | G36: =IF(IFERROR('Timeliness Quarterly'!$P$31,"error")="error","",IF('Timeliness Quarterly'!$P$31=0,"",'Timeliness Quarterly'!$P$31)) -> 
B37: ='Timeliness Quarterly'!$I$10 -> 7/1/17 - 9/30/17 | C37: ='Timeliness Quarterly'!$D$31 -> 0.8 | D37: ='Timeliness Quarterly'!$E$31 -> 4 | E37: =IF(IFERROR('Timeliness Quarterly'!I$33,"error")="error","",IF('Timeliness Quarterly'!I$33<'Timeliness Quarterly'!$D$31,'Timeliness Quarterly'!I$33,"")) ->  | F37: =IF(IFERROR('Timeliness Quarterly'!$Q$31,"error")="error","",IF('Timeliness Quarterly'!$Q$31=0,"",'Timeliness Quarterly'!$Q$31)) ->  | G37: =IF(IFERROR('Timeliness Quarterly'!$R$31,"error")="error","",IF('Timeliness Quarterly'!$R$31=0,"",'Timeliness Quarterly'!$R$31)) -> 
A38: Probate | B38: ='Timeliness Quarterly'!$F$10 -> 10/1/16 - 12/31/16 | C38: ='Timeliness Quarterly'!$D$34 -> 0.8 | D38: ='Timeliness Quarterly'!$E$34 -> 2 | E38: =IF(IFERROR('Timeliness Quarterly'!F$36,"error")="error","",IF('Timeliness Quarterly'!F$36<'Timeliness Quarterly'!$D$34,'Timeliness Quarterly'!F$36,"")) ->  | F38: =IF(IFERROR('Timeliness Quarterly'!$K$34,"error")="error","",IF('Timeliness Quarterly'!$K$34=0,"",'Timeliness Quarterly'!$K$34)) ->  | G38: =IF(IFERROR('Timeliness Quarterly'!$L$34,"error")="error","",IF('Timeliness Quarterly'!$L$34=0,"",'Timeliness Quarterly'!$L$34)) -> 
B39: ='Timeliness Quarterly'!$G$10 -> 1/1/17 - 3/31/17 | C39: ='Timeliness Quarterly'!$D$34 -> 0.8 | D39: ='Timeliness Quarterly'!$E$34 -> 2 | E39: =IF(IFERROR('Timeliness Quarterly'!G$36,"error")="error","",IF('Timeliness Quarterly'!G$36<'Timeliness Quarterly'!$D$34,'Timeliness Quarterly'!G$36,"")) ->  | F39: =IF(IFERROR('Timeliness Quarterly'!$M$34,"error")="error","",IF('Timeliness Quarterly'!$M$34=0,"",'Timeliness Quarterly'!$M$34)) ->  | G39: =IF(IFERROR('Timeliness Quarterly'!$N$34,"error")="error","",IF('Timeliness Quarterly'!$N$34=0,"",'Timeliness Quarterly'!$N$34)) -> 
B40: ='Timeliness Quarterly'!$H$10 -> 4/1/17 - 6/30/17 | C40: ='Timeliness Quarterly'!$D$34 -> 0.8 | D40: ='Timeliness Quarterly'!$E$34 -> 2 | E40: =IF(IFERROR('Timeliness Quarterly'!H$36,"error")="error","",IF('Timeliness Quarterly'!H$36<'Timeliness Quarterly'!$D$34,'Timeliness Quarterly'!H$36,"")) ->  | F40: =IF(IFERROR('Timeliness Quarterly'!$O$34,"error")="error","",IF('Timeliness Quarterly'!$O$34=0,"",'Timeliness Quarterly'!$O$34)) ->  | G40: =IF(IFERROR('Timeliness Quarterly'!$P$34,"error")="error","",IF('Timeliness Quarterly'!$P$34=0,"",'Timeliness Quarterly'!$P$34)) -> 
B41: ='Timeliness Quarterly'!$I$10 -> 7/1/17 - 9/30/17 | C41: ='Timeliness Quarterly'!$D$34 -> 0.8 | D41: ='Timeliness Quarterly'!$E$34 -> 2 | E41: =IF(IFERROR('Timeliness Quarterly'!I$36,"error")="error","",IF('Timeliness Quarterly'!I$36<'Timeliness Quarterly'!$D$34,'Timeliness Quarterly'!I$36,"")) ->  | F41: =IF(IFERROR('Timeliness Quarterly'!$Q$34,"error")="error","",IF('Timeliness Quarterly'!$Q$34=0,"",'Timeliness Quarterly'!$Q$34)) ->  | G41: =IF(IFERROR('Timeliness Quarterly'!$R$34,"error")="error","",IF('Timeliness Quarterly'!$R$34=0,"",'Timeliness Quarterly'!$R$34)) -> 
A42: Family | B42: ='Timeliness Quarterly'!$F$10 -> 10/1/16 - 12/31/16 | C42: ='Timeliness Quarterly'!$D$37 -> 0.8 | D42: ='Timeliness Quarterly'!$E$37 -> 3 | E42: =IF(IFERROR('Timeliness Quarterly'!F$39,"error")="error","",IF('Timeliness Quarterly'!F$39<'Timeliness Quarterly'!$D$37,'Timeliness Quarterly'!F$39,"")) ->  | F42: =IF(IFERROR('Timeliness Quarterly'!$K$37,"error")="error","",IF('Timeliness Quarterly'!$K$37=0,"",'Timeliness Quarterly'!$K$37)) ->  | G42: =IF(IFERROR('Timeliness Quarterly'!$L$37,"error")="error","",IF('Timeliness Quarterly'!$L$37=0,"",'Timeliness Quarterly'!$L$37)) -> 
B43: ='Timeliness Quarterly'!$G$10 -> 1/1/17 - 3/31/17 | C43: ='Timeliness Quarterly'!$D$37 -> 0.8 | D43: ='Timeliness Quarterly'!$E$37 -> 3 | E43: =IF(IFERROR('Timeliness Quarterly'!G$39,"error")="error","",IF('Timeliness Quarterly'!G$39<'Timeliness Quarterly'!$D$37,'Timeliness Quarterly'!G$39,"")) ->  | F43: =IF(IFERROR('Timeliness Quarterly'!$M$37,"error")="error","",IF('Timeliness Quarterly'!$M$37=0,"",'Timeliness Quarterly'!$M$37)) ->  | G43: =IF(IFERROR('Timeliness Quarterly'!$N$37,"error")="error","",IF('Timeliness Quarterly'!$N$37=0,"",'Timeliness Quarterly'!$N$37)) -> 
B44: ='Timeliness Quarterly'!$H$10 -> 4/1/17 - 6/30/17 | C44: ='Timeliness Quarterly'!$D$37 -> 0.8 | D44: ='Timeliness Quarterly'!$E$37 -> 3 | E44: =IF(IFERROR('Timeliness Quarterly'!H$39,"error")="error","",IF('Timeliness Quarterly'!H$39<'Timeliness Quarterly'!$D$37,'Timeliness Quarterly'!H$39,"")) ->  | F44: =IF(IFERROR('Timeliness Quarterly'!$O$37,"error")="error","",IF('Timeliness Quarterly'!$O$37=0,"",'Timeliness Quarterly'!$O$37)) ->  | G44: =IF(IFERROR('Timeliness Quarterly'!$P$37,"error")="error","",IF('Timeliness Quarterly'!$P$37=0,"",'Timeliness Quarterly'!$P$37)) -> 
B45: ='Timeliness Quarterly'!$I$10 -> 7/1/17 - 9/30/17 | C45: ='Timeliness Quarterly'!$D$37 -> 0.8 | D45: ='Timeliness Quarterly'!$E$37 -> 3 | E45: =IF(IFERROR('Timeliness Quarterly'!I$39,"error")="error","",IF('Timeliness Quarterly'!I$39<'Timeliness Quarterly'!$D$37,'Timeliness Quarterly'!I$39,"")) ->  | F45: =IF(IFERROR('Timeliness Quarterly'!$Q$37,"error")="error","",IF('Timeliness Quarterly'!$Q$37=0,"",'Timeliness Quarterly'!$Q$37)) ->  | G45: =IF(IFERROR('Timeliness Quarterly'!$R$37,"error")="error","",IF('Timeliness Quarterly'!$R$37=0,"",'Timeliness Quarterly'!$R$37)) -> 
A46: Juvenile Dependency | B46: ='Timeliness Quarterly'!$F$10 -> 10/1/16 - 12/31/16 | C46: ='Timeliness Quarterly'!$D$40 -> 0.8 | D46: ='Timeliness Quarterly'!$E$40 -> 2 | E46: =IF(IFERROR('Timeliness Quarterly'!F$42,"error")="error","",IF('Timeliness Quarterly'!F$42<'Timeliness Quarterly'!$D$40,'Timeliness Quarterly'!F$42,"")) ->  | F46: =IF(IFERROR('Timeliness Quarterly'!$K$40,"error")="error","",IF('Timeliness Quarterly'!$K$40=0,"",'Timeliness Quarterly'!$K$40)) ->  | G46: =IF(IFERROR('Timeliness Quarterly'!$L$40,"error")="error","",IF('Timeliness Quarterly'!$L$40=0,"",'Timeliness Quarterly'!$L$40)) -> 
B47: ='Timeliness Quarterly'!$G$10 -> 1/1/17 - 3/31/17 | C47: ='Timeliness Quarterly'!$D$40 -> 0.8 | D47: ='Timeliness Quarterly'!$E$40 -> 2 | E47: =IF(IFERROR('Timeliness Quarterly'!G$42,"error")="error","",IF('Timeliness Quarterly'!G$42<'Timeliness Quarterly'!$D$40,'Timeliness Quarterly'!G$42,"")) ->  | F47: =IF(IFERROR('Timeliness Quarterly'!$M$40,"error")="error","",IF('Timeliness Quarterly'!$M$40=0,"",'Timeliness Quarterly'!$M$40)) ->  | G47: =IF(IFERROR('Timeliness Quarterly'!$N$40,"error")="error","",IF('Timeliness Quarterly'!$N$40=0,"",'Timeliness Quarterly'!$N$40)) -> 
B48: ='Timeliness Quarterly'!$H$10 -> 4/1/17 - 6/30/17 | C48: ='Timeliness Quarterly'!$D$40 -> 0.8 | D48: ='Timeliness Quarterly'!$E$40 -> 2 | E48: =IF(IFERROR('Timeliness Quarterly'!H$42,"error")="error","",IF('Timeliness Quarterly'!H$42<'Timeliness Quarterly'!$D$40,'Timeliness Quarterly'!H$42,"")) ->  | F48: =IF(IFERROR('Timeliness Quarterly'!$O$40,"error")="error","",IF('Timeliness Quarterly'!$O$40=0,"",'Timeliness Quarterly'!$O$40)) ->  | G48: =IF(IFERROR('Timeliness Quarterly'!$P$40,"error")="error","",IF('Timeliness Quarterly'!$P$40=0,"",'Timeliness Quarterly'!$P$40)) -> 
B49: ='Timeliness Quarterly'!$I$10 -> 7/1/17 - 9/30/17 | C49: ='Timeliness Quarterly'!$D$40 -> 0.8 | D49: ='Timeliness Quarterly'!$E$40 -> 2 | E49: =IF(IFERROR('Timeliness Quarterly'!I$42,"error")="error","",IF('Timeliness Quarterly'!I$42<'Timeliness Quarterly'!$D$40,'Timeliness Quarterly'!I$42,"")) ->  | F49: =IF(IFERROR('Timeliness Quarterly'!$Q$40,"error")="error","",IF('Timeliness Quarterly'!$Q$40=0,"",'Timeliness Quarterly'!$Q$40)) ->  | G49: =IF(IFERROR('Timeliness Quarterly'!$R$40,"error")="error","",IF('Timeliness Quarterly'!$R$40=0,"",'Timeliness Quarterly'!$R$40)) -> 
A52: Timeliness Measeure # 2 | B52: Quarter | C52: CCOC Standard | D52: ='Timeliness Quarterly'!E46 -> # of business days | E52: Clerk Performance | F52: Reason Code | G52: Current Actions to Improve
A53: Circuit Criminal | B53: ='Timeliness Quarterly'!$F$46 -> 10/1/16 - 12/31/16 | C53: ='Timeliness Quarterly'!$D$48 -> 0.8 | D53: ='Timeliness Quarterly'!$E$48 -> 3 | E53: =IF(IFERROR('Timeliness Quarterly'!F$50,"error")="error","",IF('Timeliness Quarterly'!F$50<'Timeliness Quarterly'!$D$48,'Timeliness Quarterly'!F$50,"")) ->  | F53: =IF(IFERROR('Timeliness Quarterly'!$K$48,"error")="error","",IF('Timeliness Quarterly'!$K$48=0,"",'Timeliness Quarterly'!$K$48)) ->  | G53: =IF(IFERROR('Timeliness Quarterly'!$L$48,"error")="error","",IF('Timeliness Quarterly'!$L$48=0,"",'Timeliness Quarterly'!$L$48)) -> 
B54: ='Timeliness Quarterly'!$G$46 -> 1/1/17 - 3/31/17 | C54: ='Timeliness Quarterly'!$D$48 -> 0.8 | D54: ='Timeliness Quarterly'!$E$48 -> 3 | E54: =IF(IFERROR('Timeliness Quarterly'!G$50,"error")="error","",IF('Timeliness Quarterly'!G$50<'Timeliness Quarterly'!$D$48,'Timeliness Quarterly'!G$50,"")) ->  | F54: =IF(IFERROR('Timeliness Quarterly'!$M$48,"error")="error","",IF('Timeliness Quarterly'!$M$48=0,"",'Timeliness Quarterly'!$M$48)) ->  | G54: =IF(IFERROR('Timeliness Quarterly'!$N$48,"error")="error","",IF('Timeliness Quarterly'!$N$48=0,"",'Timeliness Quarterly'!$N$48)) -> 
B55: ='Timeliness Quarterly'!$H$46 -> 4/1/17 - 6/30/17 | C55: ='Timeliness Quarterly'!$D$48 -> 0.8 | D55: ='Timeliness Quarterly'!$E$48 -> 3 | E55: =IF(IFERROR('Timeliness Quarterly'!H$50,"error")="error","",IF('Timeliness Quarterly'!H$50<'Timeliness Quarterly'!$D$48,'Timeliness Quarterly'!H$50,"")) ->  | F55: =IF(IFERROR('Timeliness Quarterly'!$O$48,"error")="error","",IF('Timeliness Quarterly'!$O$48=0,"",'Timeliness Quarterly'!$O$48)) ->  | G55: =IF(IFERROR('Timeliness Quarterly'!$P$48,"error")="error","",IF('Timeliness Quarterly'!$P$48=0,"",'Timeliness Quarterly'!$P$48)) -> 
B56: ='Timeliness Quarterly'!$I$46 -> 7/1/17 - 9/30/17 | C56: ='Timeliness Quarterly'!$D$48 -> 0.8 | D56: ='Timeliness Quarterly'!$E$48 -> 3 | E56: =IF(IFERROR('Timeliness Quarterly'!I$50,"error")="error","",IF('Timeliness Quarterly'!I$50<'Timeliness Quarterly'!$D$48,'Timeliness Quarterly'!I$50,"")) ->  | F56: =IF(IFERROR('Timeliness Quarterly'!$Q$48,"error")="error","",IF('Timeliness Quarterly'!$Q$48=0,"",'Timeliness Quarterly'!$Q$48)) ->  | G56: =IF(IFERROR('Timeliness Quarterly'!$R$48,"error")="error","",IF('Timeliness Quarterly'!$R$48=0,"",'Timeliness Quarterly'!$R$48)) -> 
A57: County Criminal | B57: ='Timeliness Quarterly'!$F$46 -> 10/1/16 - 12/31/16 | C57: ='Timeliness Quarterly'!$D$51 -> 0.8 | D57: ='Timeliness Quarterly'!$E$51 -> 3 | E57: =IF(IFERROR('Timeliness Quarterly'!F$53,"error")="error","",IF('Timeliness Quarterly'!F$53<'Timeliness Quarterly'!$D$51,'Timeliness Quarterly'!F$53,"")) ->  | F57: =IF(IFERROR('Timeliness Quarterly'!$K$51,"error")="error","",IF('Timeliness Quarterly'!$K$51=0,"",'Timeliness Quarterly'!$K$51)) ->  | G57: =IF(IFERROR('Timeliness Quarterly'!$L$51,"error")="error","",IF('Timeliness Quarterly'!$L$51=0,"",'Timeliness Quarterly'!$L$51)) -> 
B58: ='Timeliness Quarterly'!$G$46 -> 1/1/17 - 3/31/17 | C58: ='Timeliness Quarterly'!$D$51 -> 0.8 | D58: ='Timeliness Quarterly'!$E$51 -> 3 | E58: =IF(IFERROR('Timeliness Quarterly'!G$53,"error")="error","",IF('Timeliness Quarterly'!G$53<'Timeliness Quarterly'!$D$51,'Timeliness Quarterly'!G$53,"")) ->  | F58: =IF(IFERROR('Timeliness Quarterly'!$M$51,"error")="error","",IF('Timeliness Quarterly'!$M$51=0,"",'Timeliness Quarterly'!$M$51)) ->  | G58: =IF(IFERROR('Timeliness Quarterly'!$N$51,"error")="error","",IF('Timeliness Quarterly'!$N$51=0,"",'Timeliness Quarterly'!$N$51)) -> 
B59: ='Timeliness Quarterly'!$H$46 -> 4/1/17 - 6/30/17 | C59: ='Timeliness Quarterly'!$D$51 -> 0.8 | D59: ='Timeliness Quarterly'!$E$51 -> 3 | E59: =IF(IFERROR('Timeliness Quarterly'!H$53,"error")="error","",IF('Timeliness Quarterly'!H$53<'Timeliness Quarterly'!$D$51,'Timeliness Quarterly'!H$53,"")) ->  | F59: =IF(IFERROR('Timeliness Quarterly'!$O$51,"error")="error","",IF('Timeliness Quarterly'!$O$51=0,"",'Timeliness Quarterly'!$O$51)) ->  | G59: =IF(IFERROR('Timeliness Quarterly'!$P$51,"error")="error","",IF('Timeliness Quarterly'!$P$51=0,"",'Timeliness Quarterly'!$P$51)) -> 
B60: ='Timeliness Quarterly'!$I$46 -> 7/1/17 - 9/30/17 | C60: ='Timeliness Quarterly'!$D$51 -> 0.8 | D60: ='Timeliness Quarterly'!$E$51 -> 3 | E60: =IF(IFERROR('Timeliness Quarterly'!I$53,"error")="error","",IF('Timeliness Quarterly'!I$53<'Timeliness Quarterly'!$D$51,'Timeliness Quarterly'!I$53,"")) ->  | F60: =IF(IFERROR('Timeliness Quarterly'!$Q$51,"error")="error","",IF('Timeliness Quarterly'!$Q$51=0,"",'Timeliness Quarterly'!$Q$51)) ->  | G60: =IF(IFERROR('Timeliness Quarterly'!$R$51,"error")="error","",IF('Timeliness Quarterly'!$R$51=0,"",'Timeliness Quarterly'!$R$51)) -> 
A61: Juvenile Delinquency | B61: ='Timeliness Quarterly'!$F$46 -> 10/1/16 - 12/31/16 | C61: ='Timeliness Quarterly'!$D$54 -> 0.8 | D61: ='Timeliness Quarterly'!$E$54 -> 3 | E61: =IF(IFERROR('Timeliness Quarterly'!F$56,"error")="error","",IF('Timeliness Quarterly'!F$56<'Timeliness Quarterly'!$D$54,'Timeliness Quarterly'!F$56,"")) ->  | F61: =IF(IFERROR('Timeliness Quarterly'!$K$54,"error")="error","",IF('Timeliness Quarterly'!$K$54=0,"",'Timeliness Quarterly'!$K$54)) ->  | G61: =IF(IFERROR('Timeliness Quarterly'!$L$54,"error")="error","",IF('Timeliness Quarterly'!$L$54=0,"",'Timeliness Quarterly'!$L$54)) -> 
B62: ='Timeliness Quarterly'!$G$46 -> 1/1/17 - 3/31/17 | C62: ='Timeliness Quarterly'!$D$54 -> 0.8 | D62: ='Timeliness Quarterly'!$E$54 -> 3 | E62: =IF(IFERROR('Timeliness Quarterly'!G$56,"error")="error","",IF('Timeliness Quarterly'!G$56<'Timeliness Quarterly'!$D$54,'Timeliness Quarterly'!G$56,"")) ->  | F62: =IF(IFERROR('Timeliness Quarterly'!$M$54,"error")="error","",IF('Timeliness Quarterly'!$M$54=0,"",'Timeliness Quarterly'!$M$54)) ->  | G62: =IF(IFERROR('Timeliness Quarterly'!$N$54,"error")="error","",IF('Timeliness Quarterly'!$N$54=0,"",'Timeliness Quarterly'!$N$54)) -> 
B63: ='Timeliness Quarterly'!$H$46 -> 4/1/17 - 6/30/17 | C63: ='Timeliness Quarterly'!$D$54 -> 0.8 | D63: ='Timeliness Quarterly'!$E$54 -> 3 | E63: =IF(IFERROR('Timeliness Quarterly'!H$56,"error")="error","",IF('Timeliness Quarterly'!H$56<'Timeliness Quarterly'!$D$54,'Timeliness Quarterly'!H$56,"")) ->  | F63: =IF(IFERROR('Timeliness Quarterly'!$O$54,"error")="error","",IF('Timeliness Quarterly'!$O$54=0,"",'Timeliness Quarterly'!$O$54)) ->  | G63: =IF(IFERROR('Timeliness Quarterly'!$P$54,"error")="error","",IF('Timeliness Quarterly'!$P$54=0,"",'Timeliness Quarterly'!$P$54)) -> 
B64: ='Timeliness Quarterly'!$I$46 -> 7/1/17 - 9/30/17 | C64: ='Timeliness Quarterly'!$D$54 -> 0.8 | D64: ='Timeliness Quarterly'!$E$54 -> 3 | E64: =IF(IFERROR('Timeliness Quarterly'!I$56,"error")="error","",IF('Timeliness Quarterly'!I$56<'Timeliness Quarterly'!$D$54,'Timeliness Quarterly'!I$56,"")) ->  | F64: =IF(IFERROR('Timeliness Quarterly'!$Q$54,"error")="error","",IF('Timeliness Quarterly'!$Q$54=0,"",'Timeliness Quarterly'!$Q$54)) ->  | G64: =IF(IFERROR('Timeliness Quarterly'!$R$54,"error")="error","",IF('Timeliness Quarterly'!$R$54=0,"",'Timeliness Quarterly'!$R$54)) -> 
A65: Criminal Traffic | B65: ='Timeliness Quarterly'!$F$46 -> 10/1/16 - 12/31/16 | C65: ='Timeliness Quarterly'!$D$57 -> 0.8 | D65: ='Timeliness Quarterly'!$E$57 -> 3 | E65: =IF(IFERROR('Timeliness Quarterly'!F$59,"error")="error","",IF('Timeliness Quarterly'!F$59<'Timeliness Quarterly'!$D$57,'Timeliness Quarterly'!F$59,"")) ->  | F65: =IF(IFERROR('Timeliness Quarterly'!$K$57,"error")="error","",IF('Timeliness Quarterly'!$K$57=0,"",'Timeliness Quarterly'!$K$57)) ->  | G65: =IF(IFERROR('Timeliness Quarterly'!$L$57,"error")="error","",IF('Timeliness Quarterly'!$L$57=0,"",'Timeliness Quarterly'!$L$57)) -> 
B66: ='Timeliness Quarterly'!$G$46 -> 1/1/17 - 3/31/17 | C66: ='Timeliness Quarterly'!$D$57 -> 0.8 | D66: ='Timeliness Quarterly'!$E$57 -> 3 | E66: =IF(IFERROR('Timeliness Quarterly'!G$59,"error")="error","",IF('Timeliness Quarterly'!G$59<'Timeliness Quarterly'!$D$57,'Timeliness Quarterly'!G$59,"")) ->  | F66: =IF(IFERROR('Timeliness Quarterly'!$M$57,"error")="error","",IF('Timeliness Quarterly'!$M$57=0,"",'Timeliness Quarterly'!$M$57)) ->  | G66: =IF(IFERROR('Timeliness Quarterly'!$N$57,"error")="error","",IF('Timeliness Quarterly'!$N$57=0,"",'Timeliness Quarterly'!$N$57)) -> 
B67: ='Timeliness Quarterly'!$H$46 -> 4/1/17 - 6/30/17 | C67: ='Timeliness Quarterly'!$D$57 -> 0.8 | D67: ='Timeliness Quarterly'!$E$57 -> 3 | E67: =IF(IFERROR('Timeliness Quarterly'!H$59,"error")="error","",IF('Timeliness Quarterly'!H$59<'Timeliness Quarterly'!$D$57,'Timeliness Quarterly'!H$59,"")) ->  | F67: =IF(IFERROR('Timeliness Quarterly'!$O$57,"error")="error","",IF('Timeliness Quarterly'!$O$57=0,"",'Timeliness Quarterly'!$O$57)) ->  | G67: =IF(IFERROR('Timeliness Quarterly'!$P$57,"error")="error","",IF('Timeliness Quarterly'!$P$57=0,"",'Timeliness Quarterly'!$P$57)) -> 
B68: ='Timeliness Quarterly'!$I$46 -> 7/1/17 - 9/30/17 | C68: ='Timeliness Quarterly'!$D$57 -> 0.8 | D68: ='Timeliness Quarterly'!$E$57 -> 3 | E68: =IF(IFERROR('Timeliness Quarterly'!I$59,"error")="error","",IF('Timeliness Quarterly'!I$59<'Timeliness Quarterly'!$D$57,'Timeliness Quarterly'!I$59,"")) ->  | F68: =IF(IFERROR('Timeliness Quarterly'!$Q$57,"error")="error","",IF('Timeliness Quarterly'!$Q$57=0,"",'Timeliness Quarterly'!$Q$57)) ->  | G68: =IF(IFERROR('Timeliness Quarterly'!$R$57,"error")="error","",IF('Timeliness Quarterly'!$R$57=0,"",'Timeliness Quarterly'!$R$57)) -> 
A69: Circuit Civil | B69: ='Timeliness Quarterly'!$F$46 -> 10/1/16 - 12/31/16 | C69: ='Timeliness Quarterly'!$D$61 -> 0.8 | D69: ='Timeliness Quarterly'!$E$61 -> 3 | E69: =IF(IFERROR('Timeliness Quarterly'!F$63,"error")="error","",IF('Timeliness Quarterly'!F$63<'Timeliness Quarterly'!$D$61,'Timeliness Quarterly'!F$63,"")) ->  | F69: =IF(IFERROR('Timeliness Quarterly'!$K$61,"error")="error","",IF('Timeliness Quarterly'!$K$61=0,"",'Timeliness Quarterly'!$K$61)) ->  | G69: =IF(IFERROR('Timeliness Quarterly'!$L$61,"error")="error","",IF('Timeliness Quarterly'!$L$61=0,"",'Timeliness Quarterly'!$L$61)) -> 
B70: ='Timeliness Quarterly'!$G$46 -> 1/1/17 - 3/31/17 | C70: ='Timeliness Quarterly'!$D$61 -> 0.8 | D70: ='Timeliness Quarterly'!$E$61 -> 3 | E70: =IF(IFERROR('Timeliness Quarterly'!G$63,"error")="error","",IF('Timeliness Quarterly'!G$63<'Timeliness Quarterly'!$D$61,'Timeliness Quarterly'!G$63,"")) ->  | F70: =IF(IFERROR('Timeliness Quarterly'!$M$61,"error")="error","",IF('Timeliness Quarterly'!$M$61=0,"",'Timeliness Quarterly'!$M$61)) ->  | G70: =IF(IFERROR('Timeliness Quarterly'!$N$61,"error")="error","",IF('Timeliness Quarterly'!$N$61=0,"",'Timeliness Quarterly'!$N$61)) -> 
B71: ='Timeliness Quarterly'!$H$46 -> 4/1/17 - 6/30/17 | C71: ='Timeliness Quarterly'!$D$61 -> 0.8 | D71: ='Timeliness Quarterly'!$E$61 -> 3 | E71: =IF(IFERROR('Timeliness Quarterly'!H$63,"error")="error","",IF('Timeliness Quarterly'!H$63<'Timeliness Quarterly'!$D$61,'Timeliness Quarterly'!H$63,"")) ->  | F71: =IF(IFERROR('Timeliness Quarterly'!$O$61,"error")="error","",IF('Timeliness Quarterly'!$O$61=0,"",'Timeliness Quarterly'!$O$61)) ->  | G71: =IF(IFERROR('Timeliness Quarterly'!$P$61,"error")="error","",IF('Timeliness Quarterly'!$P$61=0,"",'Timeliness Quarterly'!$P$61)) -> 
B72: ='Timeliness Quarterly'!$I$46 -> 7/1/17 - 9/30/17 | C72: ='Timeliness Quarterly'!$D$61 -> 0.8 | D72: ='Timeliness Quarterly'!$E$61 -> 3 | E72: =IF(IFERROR('Timeliness Quarterly'!I$63,"error")="error","",IF('Timeliness Quarterly'!I$63<'Timeliness Quarterly'!$D$61,'Timeliness Quarterly'!I$63,"")) ->  | F72: =IF(IFERROR('Timeliness Quarterly'!$Q$61,"error")="error","",IF('Timeliness Quarterly'!$Q$61=0,"",'Timeliness Quarterly'!$Q$61)) ->  | G72: =IF(IFERROR('Timeliness Quarterly'!$R$61,"error")="error","",IF('Timeliness Quarterly'!$R$61=0,"",'Timeliness Quarterly'!$R$61)) -> 
A73: County Civil | B73: ='Timeliness Quarterly'!$F$46 -> 10/1/16 - 12/31/16 | C73: ='Timeliness Quarterly'!$D$64 -> 0.8 | D73: ='Timeliness Quarterly'!$E$64 -> 3 | E73: =IF(IFERROR('Timeliness Quarterly'!F$66,"error")="error","",IF('Timeliness Quarterly'!F$66<'Timeliness Quarterly'!$D$64,'Timeliness Quarterly'!F$66,"")) ->  | F73: =IF(IFERROR('Timeliness Quarterly'!$K$64,"error")="error","",IF('Timeliness Quarterly'!$K$64=0,"",'Timeliness Quarterly'!$K$64)) ->  | G73: =IF(IFERROR('Timeliness Quarterly'!$L$64,"error")="error","",IF('Timeliness Quarterly'!$L$64=0,"",'Timeliness Quarterly'!$L$64)) -> 
B74: ='Timeliness Quarterly'!$G$46 -> 1/1/17 - 3/31/17 | C74: ='Timeliness Quarterly'!$D$64 -> 0.8 | D74: ='Timeliness Quarterly'!$E$64 -> 3 | E74: =IF(IFERROR('Timeliness Quarterly'!G$66,"error")="error","",IF('Timeliness Quarterly'!G$66<'Timeliness Quarterly'!$D$64,'Timeliness Quarterly'!G$66,"")) ->  | F74: =IF(IFERROR('Timeliness Quarterly'!$M$64,"error")="error","",IF('Timeliness Quarterly'!$M$64=0,"",'Timeliness Quarterly'!$M$64)) ->  | G74: =IF(IFERROR('Timeliness Quarterly'!$N$64,"error")="error","",IF('Timeliness Quarterly'!$N$64=0,"",'Timeliness Quarterly'!$N$64)) -> 
B75: ='Timeliness Quarterly'!$H$46 -> 4/1/17 - 6/30/17 | C75: ='Timeliness Quarterly'!$D$64 -> 0.8 | D75: ='Timeliness Quarterly'!$E$64 -> 3 | E75: =IF(IFERROR('Timeliness Quarterly'!H$66,"error")="error","",IF('Timeliness Quarterly'!H$66<'Timeliness Quarterly'!$D$64,'Timeliness Quarterly'!H$66,"")) ->  | F75: =IF(IFERROR('Timeliness Quarterly'!$O$64,"error")="error","",IF('Timeliness Quarterly'!$O$64=0,"",'Timeliness Quarterly'!$O$64)) ->  | G75: =IF(IFERROR('Timeliness Quarterly'!$P$64,"error")="error","",IF('Timeliness Quarterly'!$P$64=0,"",'Timeliness Quarterly'!$P$64)) -> 
B76: ='Timeliness Quarterly'!$I$46 -> 7/1/17 - 9/30/17 | C76: ='Timeliness Quarterly'!$D$64 -> 0.8 | D76: ='Timeliness Quarterly'!$E$64 -> 3 | E76: =IF(IFERROR('Timeliness Quarterly'!I$66,"error")="error","",IF('Timeliness Quarterly'!I$66<'Timeliness Quarterly'!$D$64,'Timeliness Quarterly'!I$66,"")) ->  | F76: =IF(IFERROR('Timeliness Quarterly'!$Q$64,"error")="error","",IF('Timeliness Quarterly'!$Q$64=0,"",'Timeliness Quarterly'!$Q$64)) ->  | G76: =IF(IFERROR('Timeliness Quarterly'!$R$64,"error")="error","",IF('Timeliness Quarterly'!$R$64=0,"",'Timeliness Quarterly'!$R$64)) -> 
A77: Civil Traffic | B77: ='Timeliness Quarterly'!$F$46 -> 10/1/16 - 12/31/16 | C77: ='Timeliness Quarterly'!$D$67 -> 0.8 | D77: ='Timeliness Quarterly'!$E$67 -> 4 | E77: =IF(IFERROR('Timeliness Quarterly'!F$69,"error")="error","",IF('Timeliness Quarterly'!F$69<'Timeliness Quarterly'!$D$67,'Timeliness Quarterly'!F$69,"")) ->  | F77: =IF(IFERROR('Timeliness Quarterly'!$K$67,"error")="error","",IF('Timeliness Quarterly'!$K$67=0,"",'Timeliness Quarterly'!$K$67)) ->  | G77: =IF(IFERROR('Timeliness Quarterly'!$L$67,"error")="error","",IF('Timeliness Quarterly'!$L$67=0,"",'Timeliness Quarterly'!$L$67)) -> 
B78: ='Timeliness Quarterly'!$G$46 -> 1/1/17 - 3/31/17 | C78: ='Timeliness Quarterly'!$D$67 -> 0.8 | D78: ='Timeliness Quarterly'!$E$67 -> 4 | E78: =IF(IFERROR('Timeliness Quarterly'!G$69,"error")="error","",IF('Timeliness Quarterly'!G$69<'Timeliness Quarterly'!$D$67,'Timeliness Quarterly'!G$69,"")) ->  | F78: =IF(IFERROR('Timeliness Quarterly'!$M$67,"error")="error","",IF('Timeliness Quarterly'!$M$67=0,"",'Timeliness Quarterly'!$M$67)) ->  | G78: =IF(IFERROR('Timeliness Quarterly'!$N$67,"error")="error","",IF('Timeliness Quarterly'!$N$67=0,"",'Timeliness Quarterly'!$N$67)) -> 
B79: ='Timeliness Quarterly'!$H$46 -> 4/1/17 - 6/30/17 | C79: ='Timeliness Quarterly'!$D$67 -> 0.8 | D79: ='Timeliness Quarterly'!$E$67 -> 4 | E79: =IF(IFERROR('Timeliness Quarterly'!H$69,"error")="error","",IF('Timeliness Quarterly'!H$69<'Timeliness Quarterly'!$D$67,'Timeliness Quarterly'!H$69,"")) ->  | F79: =IF(IFERROR('Timeliness Quarterly'!$O$67,"error")="error","",IF('Timeliness Quarterly'!$O$67=0,"",'Timeliness Quarterly'!$O$67)) ->  | G79: =IF(IFERROR('Timeliness Quarterly'!$P$67,"error")="error","",IF('Timeliness Quarterly'!$P$67=0,"",'Timeliness Quarterly'!$P$67)) -> 
B80: ='Timeliness Quarterly'!$I$46 -> 7/1/17 - 9/30/17 | C80: ='Timeliness Quarterly'!$D$67 -> 0.8 | D80: ='Timeliness Quarterly'!$E$67 -> 4 | E80: =IF(IFERROR('Timeliness Quarterly'!I$69,"error")="error","",IF('Timeliness Quarterly'!I$69<'Timeliness Quarterly'!$D$67,'Timeliness Quarterly'!I$69,"")) ->  | F80: =IF(IFERROR('Timeliness Quarterly'!$Q$67,"error")="error","",IF('Timeliness Quarterly'!$Q$67=0,"",'Timeliness Quarterly'!$Q$67)) ->  | G80: =IF(IFERROR('Timeliness Quarterly'!$R$67,"error")="error","",IF('Timeliness Quarterly'!$R$67=0,"",'Timeliness Quarterly'!$R$67)) -> 
A81: Probate | B81: ='Timeliness Quarterly'!$F$46 -> 10/1/16 - 12/31/16 | C81: ='Timeliness Quarterly'!$D$70 -> 0.8 | D81: ='Timeliness Quarterly'!$E$70 -> 3 | E81: =IF(IFERROR('Timeliness Quarterly'!F$72,"error")="error","",IF('Timeliness Quarterly'!F$72<'Timeliness Quarterly'!$D$70,'Timeliness Quarterly'!F$72,"")) ->  | F81: =IF(IFERROR('Timeliness Quarterly'!$K$70,"error")="error","",IF('Timeliness Quarterly'!$K$70=0,"",'Timeliness Quarterly'!$K$70)) ->  | G81: =IF(IFERROR('Timeliness Quarterly'!$L$70,"error")="error","",IF('Timeliness Quarterly'!$L$70=0,"",'Timeliness Quarterly'!$L$70)) -> 
B82: ='Timeliness Quarterly'!$G$46 -> 1/1/17 - 3/31/17 | C82: ='Timeliness Quarterly'!$D$70 -> 0.8 | D82: ='Timeliness Quarterly'!$E$70 -> 3 | E82: =IF(IFERROR('Timeliness Quarterly'!G$72,"error")="error","",IF('Timeliness Quarterly'!G$72<'Timeliness Quarterly'!$D$70,'Timeliness Quarterly'!G$72,"")) ->  | F82: =IF(IFERROR('Timeliness Quarterly'!$M$70,"error")="error","",IF('Timeliness Quarterly'!$M$70=0,"",'Timeliness Quarterly'!$M$70)) ->  | G82: =IF(IFERROR('Timeliness Quarterly'!$N$70,"error")="error","",IF('Timeliness Quarterly'!$N$70=0,"",'Timeliness Quarterly'!$N$70)) -> 
B83: ='Timeliness Quarterly'!$H$46 -> 4/1/17 - 6/30/17 | C83: ='Timeliness Quarterly'!$D$70 -> 0.8 | D83: ='Timeliness Quarterly'!$E$70 -> 3 | E83: =IF(IFERROR('Timeliness Quarterly'!H$72,"error")="error","",IF('Timeliness Quarterly'!H$72<'Timeliness Quarterly'!$D$70,'Timeliness Quarterly'!H$72,"")) ->  | F83: =IF(IFERROR('Timeliness Quarterly'!$O$70,"error")="error","",IF('Timeliness Quarterly'!$O$70=0,"",'Timeliness Quarterly'!$O$70)) ->  | G83: =IF(IFERROR('Timeliness Quarterly'!$P$70,"error")="error","",IF('Timeliness Quarterly'!$P$70=0,"",'Timeliness Quarterly'!$P$70)) -> 
B84: ='Timeliness Quarterly'!$I$46 -> 7/1/17 - 9/30/17 | C84: ='Timeliness Quarterly'!$D$70 -> 0.8 | D84: ='Timeliness Quarterly'!$E$70 -> 3 | E84: =IF(IFERROR('Timeliness Quarterly'!I$72,"error")="error","",IF('Timeliness Quarterly'!I$72<'Timeliness Quarterly'!$D$70,'Timeliness Quarterly'!I$72,"")) ->  | F84: =IF(IFERROR('Timeliness Quarterly'!$Q$70,"error")="error","",IF('Timeliness Quarterly'!$Q$70=0,"",'Timeliness Quarterly'!$Q$70)) ->  | G84: =IF(IFERROR('Timeliness Quarterly'!$R$70,"error")="error","",IF('Timeliness Quarterly'!$R$70=0,"",'Timeliness Quarterly'!$R$70)) -> 
A85: Family | B85: ='Timeliness Quarterly'!$F$46 -> 10/1/16 - 12/31/16 | C85: ='Timeliness Quarterly'!$D$73 -> 0.8 | D85: ='Timeliness Quarterly'!$E$73 -> 3 | E85: =IF(IFERROR('Timeliness Quarterly'!F$75,"error")="error","",IF('Timeliness Quarterly'!F$75<'Timeliness Quarterly'!$D$73,'Timeliness Quarterly'!F$75,"")) ->  | F85: =IF(IFERROR('Timeliness Quarterly'!$K$73,"error")="error","",IF('Timeliness Quarterly'!$K$73=0,"",'Timeliness Quarterly'!$K$73)) ->  | G85: =IF(IFERROR('Timeliness Quarterly'!$L$73,"error")="error","",IF('Timeliness Quarterly'!$L$73=0,"",'Timeliness Quarterly'!$L$73)) -> 
B86: ='Timeliness Quarterly'!$G$46 -> 1/1/17 - 3/31/17 | C86: ='Timeliness Quarterly'!$D$73 -> 0.8 | D86: ='Timeliness Quarterly'!$E$73 -> 3 | E86: =IF(IFERROR('Timeliness Quarterly'!G$75,"error")="error","",IF('Timeliness Quarterly'!G$75<'Timeliness Quarterly'!$D$73,'Timeliness Quarterly'!G$75,"")) ->  | F86: =IF(IFERROR('Timeliness Quarterly'!$M$73,"error")="error","",IF('Timeliness Quarterly'!$M$73=0,"",'Timeliness Quarterly'!$M$73)) ->  | G86: =IF(IFERROR('Timeliness Quarterly'!$N$73,"error")="error","",IF('Timeliness Quarterly'!$N$73=0,"",'Timeliness Quarterly'!$N$73)) -> 
B87: ='Timeliness Quarterly'!$H$46 -> 4/1/17 - 6/30/17 | C87: ='Timeliness Quarterly'!$D$73 -> 0.8 | D87: ='Timeliness Quarterly'!$E$73 -> 3 | E87: =IF(IFERROR('Timeliness Quarterly'!H$75,"error")="error","",IF('Timeliness Quarterly'!H$75<'Timeliness Quarterly'!$D$73,'Timeliness Quarterly'!H$75,"")) ->  | F87: =IF(IFERROR('Timeliness Quarterly'!$O$73,"error")="error","",IF('Timeliness Quarterly'!$O$73=0,"",'Timeliness Quarterly'!$O$73)) ->  | G87: =IF(IFERROR('Timeliness Quarterly'!$P$73,"error")="error","",IF('Timeliness Quarterly'!$P$73=0,"",'Timeliness Quarterly'!$P$73)) -> 
B88: ='Timeliness Quarterly'!$I$46 -> 7/1/17 - 9/30/17 | C88: ='Timeliness Quarterly'!$D$73 -> 0.8 | D88: ='Timeliness Quarterly'!$E$73 -> 3 | E88: =IF(IFERROR('Timeliness Quarterly'!I$75,"error")="error","",IF('Timeliness Quarterly'!I$75<'Timeliness Quarterly'!$D$73,'Timeliness Quarterly'!I$75,"")) ->  | F88: =IF(IFERROR('Timeliness Quarterly'!$Q$73,"error")="error","",IF('Timeliness Quarterly'!$Q$73=0,"",'Timeliness Quarterly'!$Q$73)) ->  | G88: =IF(IFERROR('Timeliness Quarterly'!$R$73,"error")="error","",IF('Timeliness Quarterly'!$R$73=0,"",'Timeliness Quarterly'!$R$73)) -> 
A89: Juvenile Dependency | B89: ='Timeliness Quarterly'!$F$46 -> 10/1/16 - 12/31/16 | C89: ='Timeliness Quarterly'!$D$76 -> 0.8 | D89: ='Timeliness Quarterly'!$E$76 -> 3 | E89: =IF(IFERROR('Timeliness Quarterly'!F$78,"error")="error","",IF('Timeliness Quarterly'!F$78<'Timeliness Quarterly'!$D$76,'Timeliness Quarterly'!F$78,"")) ->  | F89: =IF(IFERROR('Timeliness Quarterly'!$K$76,"error")="error","",IF('Timeliness Quarterly'!$K$76=0,"",'Timeliness Quarterly'!$K$76)) ->  | G89: =IF(IFERROR('Timeliness Quarterly'!$L$76,"error")="error","",IF('Timeliness Quarterly'!$L$76=0,"",'Timeliness Quarterly'!$L$76)) -> 
B90: ='Timeliness Quarterly'!$G$46 -> 1/1/17 - 3/31/17 | C90: ='Timeliness Quarterly'!$D$76 -> 0.8 | D90: ='Timeliness Quarterly'!$E$76 -> 3 | E90: =IF(IFERROR('Timeliness Quarterly'!G$78,"error")="error","",IF('Timeliness Quarterly'!G$78<'Timeliness Quarterly'!$D$76,'Timeliness Quarterly'!G$78,"")) ->  | F90: =IF(IFERROR('Timeliness Quarterly'!$M$76,"error")="error","",IF('Timeliness Quarterly'!$M$76=0,"",'Timeliness Quarterly'!$M$76)) ->  | G90: =IF(IFERROR('Timeliness Quarterly'!$N$76,"error")="error","",IF('Timeliness Quarterly'!$N$76=0,"",'Timeliness Quarterly'!$N$76)) -> 
B91: ='Timeliness Quarterly'!$H$46 -> 4/1/17 - 6/30/17 | C91: ='Timeliness Quarterly'!$D$76 -> 0.8 | D91: ='Timeliness Quarterly'!$E$76 -> 3 | E91: =IF(IFERROR('Timeliness Quarterly'!H$78,"error")="error","",IF('Timeliness Quarterly'!H$78<'Timeliness Quarterly'!$D$76,'Timeliness Quarterly'!H$78,"")) ->  | F91: =IF(IFERROR('Timeliness Quarterly'!$O$76,"error")="error","",IF('Timeliness Quarterly'!$O$76=0,"",'Timeliness Quarterly'!$O$76)) ->  | G91: =IF(IFERROR('Timeliness Quarterly'!$P$76,"error")="error","",IF('Timeliness Quarterly'!$P$76=0,"",'Timeliness Quarterly'!$P$76)) -> 
B92: ='Timeliness Quarterly'!$I$46 -> 7/1/17 - 9/30/17 | C92: ='Timeliness Quarterly'!$D$76 -> 0.8 | D92: ='Timeliness Quarterly'!$E$76 -> 3 | E92: =IF(IFERROR('Timeliness Quarterly'!I$78,"error")="error","",IF('Timeliness Quarterly'!I$78<'Timeliness Quarterly'!$D$76,'Timeliness Quarterly'!I$78,"")) ->  | F92: =IF(IFERROR('Timeliness Quarterly'!$Q$76,"error")="error","",IF('Timeliness Quarterly'!$Q$76=0,"",'Timeliness Quarterly'!$Q$76)) ->  | G92: =IF(IFERROR('Timeliness Quarterly'!$R$76,"error")="error","",IF('Timeliness Quarterly'!$R$76=0,"",'Timeliness Quarterly'!$R$76)) -> 

Sheet Sheet2 (hidden)
D1: Cir Crim | E1: Count Crim | F1: Juv Del | G1: Crim Traff | H1: Civ Cir | I1: Civ Count | J1: Probate | K1: Fam | L1: Juv Dep | M1: Civ Traffic
A2: Alachua | B2: 4 | C2: New Cases | D2: 4400 | E2: 6000 | F2: 1100 | G2: 3700 | H2: 1800 | I2: 4700 | J2: 2500 | K2: 3000 | L2: 180 | M2: 45000
A3: Baker | B3: 2 | C3: New Cases | D3: 571 | E3: 741 | F3: 121 | G3: 420 | H3: 175 | I3: 266 | J3: 193 | K3: 418 | L3: 64 | M3: 4038
A4: Bay | B4: 3 | C4: New Cases | D4: 5759 | E4: 8814 | F4: 906 | G4: 4754 | H4: 1374 | I4: 2835 | J4: 1448 | K4: 2769 | L4: 296 | M4: 24669
A5: Bradford | B5: 2 | C5: New Cases | D5: 850 | E5: 650 | F5: 116 | G5: 667 | H5: 231 | I5: 380 | J5: 105 | K5: 380 | L5: 22 | M5: 7850
A6: Brevard | B6: 5 | C6: New Cases | D6: 8000 | E6: 10000 | F6: 1900 | G6: 7200 | H6: 5200 | I6: 7700 | J6: 5000 | K6: 7200 | L6: 350 | M6: 52000
A7: Broward | B7: 6 | C7: New Cases | D7: 16440 | E7: 23280 | F7: 4920 | G7: 29000 | H7: 24480 | I7: 68760 | J7: 10800 | K7: 25320 | L7: 960 | M7: 321400
A8: Calhoun | B8: 1 | C8: New Cases | D8: 202 | E8: 171 | F8: 39 | G8: 139 | H8: 73 | I8: 138 | J8: 80 | K8: 280 | L8: 14 | M8: 1219
A9: Charlotte | B9: 3 | C9: New Cases | D9: 2200 | E9: 2500 | F9: 610 | G9: 2200 | H9: 1750 | I9: 2200 | J9: 2500 | K9: 2100 | L9: 150 | M9: 15300
A10: Citrus | B10: 3 | C10: New Cases | D10: 1200 | E10: 1575 | F10: 200 | G10: 890 | H10: 1150 | I10: 1800 | J10: 1525 | K10: 2000 | L10: 200 | M10: 5000
A11: Clay | B11: 3 | C11: New Cases | D11: 1696 | E11: 2428 | F11: 640 | G11: 2074 | H11: 1305 | I11: 2394 | J11: 959 | K11: 2493 | L11: 283 | M11: 22109
A12: Collier | B12: 4 | C12: New Cases | D12: 2450 | E12: 4300 | F12: 780 | G12: 4930 | H12: 2300 | I12: 4200 | J12: 3700 | K12: 3200 | L12: 215 | M12: 35400
A13: Columbia | B13: 2 | C13: New Cases | D13: 1100 | E13: 1250 | F13: 260 | G13: 1100 | H13: 540 | I13: 1200 | J13: 500 | K13: 1300 | L13: 180 | M13: 10500
A14: Dade | B14: 6 | C14: New Cases | D14: 30000 | E14: 36000 | F14: 4700 | G14: 66000 | H14: 32500 | I14: 75000 | J14: 13400 | K14: 31000 | L14: 3100 | M14: 742500
A15: Desoto | B15: 2 | C15: New Cases | D15: 570 | E15: 580 | F15: 200 | G15: 460 | H15: 180 | I15: 380 | J15: 120 | K15: 430 | L15: 30 | M15: 3000
A16: Dixie | B16: 1 | C16: New Cases | D16: 220 | E16: 218 | F16: 51 | G16: 168 | H16: 100 | I16: 132 | J16: 86 | K16: 373 | L16: 30 | M16: 2875
A17: Duval | B17: 5 | C17: New Cases | D17: 11394 | E17: 20857 | F17: 3161 | G17: 18635 | H17: 8812 | I17: 20658 | J17: 6244 | K17: 14184 | L17: 984 | M17: 114423
A18: Escambia | B18: 4 | C18: New Cases | D18: 6300 | E18: 7250 | F18: 1475 | G18: 4000 | H18: 2100 | I18: 4200 | J18: 3500 | K18: 5250 | L18: 240 | M18: 36500
A19: Flagler | B19: 2 | C19: New Cases | D19: 1000 | E19: 1500 | F19: 240 | G19: 970 | H19: 720 | I19: 1050 | J19: 750 | K19: 1200 | L19: 55 | M19: 6500
A20: Franklin | B20: 1 | C20: New Cases | D20: 212 | E20: 862 | F20: 36 | G20: 199 | H20: 93 | I20: 81 | J20: 98 | K20: 229 | L20: 8 | M20: 1401
A21: Gadsden | B21: 2 | C21: New Cases | D21: 525 | E21: 595 | F21: 119 | G21: 983 | H21: 385 | I21: 440 | J21: 548 | K21: 608 | L21: 15 | M21: 11298
A22: Gilchrist | B22: 1 | C22: New Cases | D22: 217 | E22: 262 | F22: 48 | G22: 155 | H22: 116 | I22: 144 | J22: 90 | K22: 310 | L22: 12 | M22: 1124
A23: Glades | B23: 1 | C23: New Cases | D23: 150 | E23: 300 | F23: 35 | G23: 180 | H23: 63 | I23: 70 | J23: 43 | K23: 120 | L23: 7 | M23: 4704
A24: Gulf | B24: 1 | C24: New Cases | D24: 289 | E24: 325 | F24: 37 | G24: 159 | H24: 140 | I24: 117 | J24: 122 | K24: 220 | L24: 5 | M24: 662
A25: Hamilton | B25: 1 | C25: New Cases | D25: 278 | E25: 308 | F25: 84 | G25: 406 | H25: 590 | I25: 150 | J25: 76 | K25: 276 | L25: 11 | M25: 3718
A26: Hardee | B26: 2 | C26: New Cases | D26: 339 | E26: 563 | F26: 119 | G26: 619 | H26: 144 | I26: 222 | J26: 111 | K26: 395 | L26: 20 | M26: 4260
A27: Hendry | B27: 2 | C27: New Cases | D27: 780 | E27: 1300 | F27: 245 | G27: 1300 | H27: 260 | I27: 400 | J27: 110 | K27: 550 | L27: 35 | M27: 7000
A28: Hernando | B28: 3 | C28: New Cases | D28: 2500 | E28: 2500 | F28: 650 | G28: 1500 | H28: 1600 | I28: 3200 | J28: 2700 | K28: 2500 | L28: 225 | M28: 24000
A29: Highlands | B29: 3 | C29: New Cases | D29: 1075 | E29: 1260 | F29: 450 | G29: 950 | H29: 670 | I29: 1320 | J29: 1100 | K29: 1300 | L29: 60 | M29: 6000
A30: Hillsborough | B30: 6 | C30: New Cases | D30: 19113 | E30: 26569 | F30: 5724 | G30: 33877 | H30: 14415 | I30: 37969 | J30: 9215 | K30: 19837 | L30: 1143 | M30: 187784
A31: Holmes | B31: 1 | C31: New Cases | D31: 420 | E31: 450 | F31: 70 | G31: 266 | H31: 105 | I31: 200 | J31: 108 | K31: 300 | L31: 11 | M31: 3153
A32: Indian River | B32: 3 | C32: New Cases | D32: 1719 | E32: 3254 | F32: 312 | G32: 1286 | H32: 955 | I32: 2108 | J32: 1342 | K32: 1762 | L32: 113 | M32: 16006
A33: Jackson | B33: 2 | C33: New Cases | D33: 646 | E33: 547 | F33: 93 | G33: 522 | H33: 385 | I33: 522 | J33: 361 | K33: 720 | L33: 175 | M33: 8429
A34: Jefferson | B34: 1 | C34: New Cases | D34: 322 | E34: 210 | F34: 25 | G34: 225 | H34: 100 | I34: 120 | J34: 80 | K34: 175 | L34: 2 | M34: 4977
A35: Lafayette | B35: 1 | C35: New Cases | D35: 58 | E35: 85 | F35: 9 | G35: 85 | H35: 48 | I35: 80 | J35: 37 | K35: 118 | L35: 4 | M35: 600
A36: Lake | B36: 4 | C36: New Cases | D36: 3665 | E36: 3815 | F36: 1120 | G36: 3400 | H36: 2325 | I36: 3900 | J36: 2650 | K36: 4250 | L36: 185 | M36: 36000
A37: Lee | B37: 5 | C37: New Cases | D37: 6050.17 | E37: 14500 | F37: 2050 | G37: 9900 | H37: 4300 | I37: 9300 | J37: 6600 | K37: 9200 | L37: 615 | M37: 88000
A38: Leon | B38: 4 | C38: New Cases | D38: 3901 | E38: 3672 | F38: 876 | G38: 2849 | H38: 3046.29 | I38: 6337 | J38: 2442.86 | K38: 4100.57 | L38: 138.86 | M38: 33888
A39: Levy | B39: 2 | C39: New Cases | D39: 650 | E39: 820 | F39: 150 | G39: 610 | H39: 250 | I39: 450 | J39: 230 | K39: 675 | L39: 30 | M39: 3500
A40: Liberty | B40: 1 | C40: New Cases | D40: 115 | E40: 152 | F40: 31 | G40: 91 | H40: 38 | I40: 57 | J40: 39 | K40: 133 | L40: 3 | M40: 794
A41: Madison | B41: 1 | C41: New Cases | D41: 410 | E41: 400 | F41: 90 | G41: 460 | H41: 200 | I41: 220 | J41: 140 | K41: 295 | L41: 10 | M41: 10400
A42: Manatee | B42: 4 | C42: New Cases | D42: 4550 | E42: 5600 | F42: 1000 | G42: 4100 | H42: 2000 | I42: 4500 | J42: 3300 | K42: 4000 | L42: 700 | M42: 29500
A43: Marion | B43: 4 | C43: New Cases | D43: 4034 | E43: 4787 | F43: 1094 | G43: 3821 | H43: 2681 | I43: 5465 | J43: 5076 | K43: 5450 | L43: 351 | M43: 27033
A44: Martin | B44: 3 | C44: New Cases | D44: 1623 | E44: 3129 | F44: 369 | G44: 2953 | H44: 1526.53 | I44: 1631 | J44: 1477 | K44: 1489 | L44: 126 | M44: 22838
A45: Monroe | B45: 3 | C45: New Cases | D45: 1362 | E45: 3064 | F45: 111 | G45: 583 | H45: 699 | I45: 1592 | J45: 669 | K45: 1225 | L45: 61 | M45: 20157
A46: Nassau | B46: 2 | C46: New Cases | D46: 946 | E46: 1397 | F46: 182 | G46: 1600 | H46: 550 | I46: 800 | J46: 450 | K46: 1100 | L46: 45 | M46: 10000
A47: Okaloosa | B47: 3 | C47: New Cases | D47: 3000 | E47: 4800 | F47: 800 | G47: 3400 | H47: 1500 | I47: 3000 | J47: 1650 | K47: 3300 | L47: 340 | M47: 22000
A48: Okeechobee | B48: 2 | C48: New Cases | D48: 838 | E48: 713 | F48: 166 | G48: 732 | H48: 559 | I48: 398 | J48: 218 | K48: 542 | L48: 81 | M48: 3971
A49: Orange | B49: 6 | C49: New Cases | D49: 17570 | E49: 22040 | F49: 5790 | G49: 17470 | H49: 10800 | I49: 36900 | J49: 8050 | K49: 20620 | L49: 740 | M49: 264420
A50: Osceola | B50: 4 | C50: New Cases | D50: 4709 | E50: 4638 | F50: 1261 | G50: 4489 | H50: 3464 | I50: 5589 | J50: 1582 | K50: 5661 | L50: 106 | M50: 67924
A51: Palm Beach | B51: 6 | C51: New Cases | D51: 13000 | E51: 29000 | F51: 3000 | G51: 29000 | H51: 14000 | I51: 24000 | J51: 12100 | K51: 13000 | L51: 700 | M51: 200000
A52: Pasco | B52: 5 | C52: New Cases | D52: 9000 | E52: 14500 | F52: 1950 | G52: 5500 | H52: 4286 | I52: 7754 | J52: 3328 | K52: 6759 | L52: 300 | M52: 40000
A53: Pinellas | B53: 6 | C53: New Cases | D53: 14800 | E53: 25200 | F53: 4620 | G53: 16430 | H53: 8380 | I53: 21200 | J53: 10250 | K53: 12480 | L53: 780 | M53: 82200
A54: Polk | B54: 5 | C54: New Cases | D54: 9400 | E54: 15000 | F54: 3250 | G54: 8000 | H54: 4300 | I54: 11600 | J54: 5680 | K54: 10400 | L54: 650 | M54: 65000
A55: Putnam | B55: 3 | C55: New Cases | D55: 1700 | E55: 1800 | F55: 340 | G55: 960 | H55: 540 | I55: 1100 | J55: 480 | K55: 1350 | L55: 180 | M55: 5800
A56: Santa Rosa | B56: 3 | C56: New Cases | D56: 1756 | E56: 2725 | F56: 445 | G56: 2205 | H56: 1370 | I56: 1519 | J56: 798 | K56: 2402 | L56: 239 | M56: 23507
A57: Sarasota | B57: 4 | C57: New Cases | D57: 4277 | E57: 8424 | F57: 508 | G57: 4709 | H57: 2743 | I57: 6811 | J57: 7290 | K57: 4027 | L57: 262 | M57: 57948
A58: Seminole | B58: 4 | C58: New Cases | D58: 4000 | E58: 5900 | F58: 1200 | G58: 5700 | H58: 3200 | I58: 8200 | J58: 3000 | K58: 5000 | L58: 290 | M58: 70000
A59: St. Johns | B59: 3 | C59: New Cases | D59: 1990 | E59: 4778 | F59: 530 | G59: 2045 | H59: 1650 | I59: 1913 | J59: 1600 | K59: 2046 | L59: 100 | M59: 21000
A60: St. Lucie | B60: 4 | C60: New Cases | D60: 3880 | E60: 5400 | F60: 1050 | G60: 3100 | H60: 2300 | I60: 5000 | J60: 2500 | K60: 3200 | L60: 400 | M60: 37500
A61: Sumter | B61: 2 | C61: New Cases | D61: 1000 | E61: 900 | F61: 175 | G61: 980 | H61: 600 | I61: 580 | J61: 1100 | K61: 800 | L61: 75 | M61: 12500
A62: Suwannee | B62: 2 | C62: New Cases | D62: 700 | E62: 600 | F62: 200 | G62: 600 | H62: 330 | I62: 560 | J62: 280 | K62: 820 | L62: 25 | M62: 3600
A63: Taylor | B63: 2 | C63: New Cases | D63: 385 | E63: 592 | F63: 79 | G63: 355 | H63: 200 | I63: 200 | J63: 150 | K63: 425 | L63: 50 | M63: 2270
A64: Union | B64: 1 | C64: New Cases | D64: 170 | E64: 140 | F64: 30 | G64: 100 | H64: 140 | I64: 130 | J64: 130 | K64: 250 | L64: 6 | M64: 1450
A65: Volusia | B65: 5 | C65: New Cases | D65: 9771 | E65: 17350 | F65: 1980 | G65: 11794 | H65: 4233 | I65: 8469 | J65: 5541 | K65: 7886 | L65: 536 | M65: 59096
A66: Wakulla | B66: 2 | C66: New Cases | D66: 286 | E66: 353 | F66: 101 | G66: 284 | H66: 222 | I66: 263 | J66: 134 | K66: 420 | L66: 17 | M66: 4027
A67: Walton | B67: 2 | C67: New Cases | D67: 1176 | E67: 2413 | F67: 394 | G67: 976 | H67: 729 | I67: 784 | J67: 430 | K67: 925 | L67: 209 | M67: 5816
A68: Washington | B68: 2 | C68: New Cases | D68: 420 | E68: 560 | F68: 70 | G68: 235 | H68: 208 | I68: 230 | J68: 130 | K68: 375 | L68: 20 | M68: 3500
D70: Cir Crim | E70: Count Crim | F70: Juv Del | G70: Crim Traff | H70: Civ Cir | I70: Civ Count | J70: Probate | K70: Fam | L70: Juv Dep | M70: Civ Traffic
A71: Alachua | B71: 4 | C71: Notices of Appeal | D71: 180 | E71: 8 | F71: 15 | G71: 10 | H71: 50 | I71: 12 | J71: 5 | K71: 1 | L71: 1 | M71: 5
A72: Baker | B72: 2 | C72: Notices of Appeal | D72: 16 | E72: 1 | F72: 2 | G72: 0 | H72: 1 | I72: 0 | J72: 1 | K72: 1 | L72: 1 | M72: 0
A73: Bay | B73: 3 | C73: Notices of Appeal | D73: 193 | E73: 5 | F73: 5 | G73: 5 | H73: 47 | I73: 2 | J73: 1 | K73: 12 | L73: 8 | M73: 1
A74: Bradford | B74: 2 | C74: Notices of Appeal | D74: 10 | E74: 0 | F74: 0 | G74: 0 | H74: 10 | I74: 0 | J74: 0 | K74: 0 | L74: 0 | M74: 0
A75: Brevard | B75: 5 | C75: Notices of Appeal | D75: 450 | E75: 25 | F75: 3 | G75: 35 | H75: 100 | I75: 15 | J75: 5 | K75: 35 | L75: 25 | M75: 10
A76: Broward | B76: 6 | C76: Notices of Appeal | D76: 960 | E76: 120 | F76: 50 | G76: 10 | H76: 720 | I76: 360 | J76: 10 | K76: 120 | L76: 10 | M76: 10
A77: Calhoun | B77: 1 | C77: Notices of Appeal | D77: 10 | E77: 0 | F77: 0 | G77: 0 | H77: 1 | I77: 0 | J77: 0 | K77: 0 | L77: 0 | M77: 0
A78: Charlotte | B78: 3 | C78: Notices of Appeal | D78: 65 | E78: 8 | F78: 1 | G78: 1 | H78: 60 | I78: 10 | J78: 1 | K78: 0 | L78: 5 | M78: 0
A79: Citrus | B79: 3 | C79: Notices of Appeal | D79: 120 | E79: 2 | F79: 0 | G79: 0 | H79: 24 | I79: 4 | J79: 2 | K79: 3 | L79: 2 | M79: 0
A80: Clay | B80: 3 | C80: Notices of Appeal | D80: 69 | E80: 2 | F80: 2 | G80: 1 | H80: 25 | I80: 4 | J80: 1 | K80: 9 | L80: 4 | M80: 1
A81: Collier | B81: 4 | C81: Notices of Appeal | D81: 86 | E81: 3 | F81: 1 | G81: 2 | H81: 86 | I81: 18 | J81: 3 | K81: 25 | L81: 3 | M81: 1
A82: Columbia | B82: 2 | C82: Notices of Appeal | D82: 80 | E82: 6 | F82: 0 | G82: 0 | H82: 16 | I82: 0 | J82: 0 | K82: 0 | L82: 6 | M82: 0
A83: Dade | B83: 6 | C83: Notices of Appeal | D83: 1010 | E83: 25 | F83: 75 | G83: 30 | H83: 900 | I83: 435 | J83: 30 | K83: 120 | L83: 80 | M83: 0
A84: Desoto | B84: 2 | C84: Notices of Appeal | D84: 10 | E84: 2 | F84: 1 | G84: 1 | H84: 10 | I84: 1 | J84: 1 | K84: 1 | L84: 1 | M84: 1
A85: Dixie | B85: 1 | C85: Notices of Appeal | D85: 2 | E85: 0 | F85: 0 | G85: 0 | H85: 1 | I85: 0 | J85: 0 | K85: 1 | L85: 1 | M85: 0
A86: Duval | B86: 5 | C86: Notices of Appeal | D86: 518 | E86: 16 | F86: 0 | G86: 5 | H86: 149 | I86: 156 | J86: 3 | K86: 63 | L86: 23 | M86: 7
A87: Escambia | B87: 4 | C87: Notices of Appeal | D87: 640 | E87: 30 | F87: 3 | G87: 8 | H87: 50 | I87: 13 | J87: 3 | K87: 20 | L87: 10 | M87: 0
A88: Flagler | B88: 2 | C88: Notices of Appeal | D88: 50 | E88: 0 | F88: 2 | G88: 1 | H88: 2 | I88: 0 | J88: 0 | K88: 2 | L88: 0 | M88: 0
A89: Franklin | B89: 1 | C89: Notices of Appeal | D89: 1 | E89: 1 | F89: 1 | G89: 1 | H89: 1 | I89: 1 | J89: 1 | K89: 1 | L89: 1 | M89: 1
A90: Gadsden | B90: 2 | C90: Notices of Appeal | D90: 1 | E90: 0 | F90: 0 | G90: 0 | H90: 0 | I90: 0 | J90: 0 | K90: 0 | L90: 0 | M90: 0
A91: Gilchrist | B91: 1 | C91: Notices of Appeal | D91: 2 | E91: 1 | F91: 0 | G91: 0 | H91: 1 | I91: 0 | J91: 0 | K91: 1 | L91: 1 | M91: 0
A92: Glades | B92: 1 | C92: Notices of Appeal | D92: 4 | E92: 0 | F92: 0 | G92: 0 | H92: 2 | I92: 0 | J92: 0 | K92: 0 | L92: 0 | M92: 0
A93: Gulf | B93: 1 | C93: Notices of Appeal | D93: 5 | E93: 0 | F93: 0 | G93: 0 | H93: 5 | I93: 0 | J93: 0 | K93: 2 | L93: 0 | M93: 0
A94: Hamilton | B94: 1 | C94: Notices of Appeal | D94: 17 | E94: 0 | F94: 0 | G94: 0 | H94: 10 | I94: 0 | J94: 0 | K94: 0 | L94: 0 | M94: 0
A95: Hardee | B95: 2 | C95: Notices of Appeal | D95: 0 | E95: 1 | F95: 0 | G95: 0 | H95: 0 | I95: 0 | J95: 0 | K95: 0 | L95: 0 | M95: 0
A96: Hendry | B96: 2 | C96: Notices of Appeal | D96: 15 | E96: 1 | F96: 1 | G96: 1 | H96: 5 | I96: 1 | J96: 1 | K96: 1 | L96: 1 | M96: 1
A97: Hernando | B97: 3 | C97: Notices of Appeal | D97: 80 | E97: 4 | F97: 0 | G97: 0 | H97: 30 | I97: 8 | J97: 1 | K97: 5 | L97: 3 | M97: 1
A98: Highlands | B98: 3 | C98: Notices of Appeal | D98: 70 | E98: 1 | F98: 0 | G98: 3 | H98: 20 | I98: 1 | J98: 0 | K98: 5 | L98: 1 | M98: 3
A99: Hillsborough | B99: 6 | C99: Notices of Appeal | D99: 1226 | E99: 25 | F99: 74 | G99: 33 | H99: 243 | I99: 41 | J99: 7 | K99: 100 | L99: 65 | M99: 9
A100: Holmes | B100: 1 | C100: Notices of Appeal | D100: 12 | E100: 0 | F100: 0 | G100: 0 | H100: 4 | I100: 1 | J100: 1 | K100: 0 | L100: 0 | M100: 0
A101: Indian River | B101: 3 | C101: Notices of Appeal | D101: 55 | E101: 2 | F101: 22 | G101: 2 | H101: 27 | I101: 3 | J101: 2 | K101: 7 | L101: 7 | M101: 0
A102: Jackson | B102: 2 | C102: Notices of Appeal | D102: 24 | E102: 0 | F102: 0 | G102: 0 | H102: 21 | I102: 0 | J102: 0 | K102: 0 | L102: 4 | M102: 0
A103: Jefferson | B103: 1 | C103: Notices of Appeal | D103: 0 | E103: 0 | F103: 0 | G103: 0 | H103: 4 | I103: 4 | J103: 0 | K103: 0 | L103: 0 | M103: 0
A104: Lafayette | B104: 1 | C104: Notices of Appeal | D104: 3 | E104: 1 | F104: 1 | G104: 1 | H104: 1 | I104: 1 | J104: 1 | K104: 2 | L104: 1 | M104: 1
A105: Lake | B105: 4 | C105: Notices of Appeal | D105: 130 | E105: 2 | F105: 1 | G105: 1 | H105: 40 | I105: 8 | J105: 1 | K105: 8 | L105: 2 | M105: 2
A106: Lee | B106: 5 | C106: Notices of Appeal | D106: 265 | E106: 15 | F106: 2 | G106: 2 | H106: 100 | I106: 30 | J106: 10 | K106: 35 | L106: 20 | M106: 5
A107: Leon | B107: 4 | C107: Notices of Appeal | D107: 404 | E107: 0 | F107: 2 | G107: 0 | H107: 358 | I107: 8 | J107: 2 | K107: 27 | L107: 9 | M107: 0
A108: Levy | B108: 2 | C108: Notices of Appeal | D108: 30 | E108: 3 | F108: 2 | G108: 2 | H108: 20 | I108: 5 | J108: 3 | K108: 10 | L108: 2 | M108: 2
A109: Liberty | B109: 1 | C109: Notices of Appeal | D109: 7 | E109: 0 | F109: 0 | G109: 0 | H109: 4 | I109: 0 | J109: 0 | K109: 0 | L109: 0 | M109: 0
A110: Madison | B110: 1 | C110: Notices of Appeal | D110: 20 | E110: 1 | F110: 1 | G110: 1 | H110: 3 | I110: 1 | J110: 1 | K110: 3 | L110: 1 | M110: 1
A111: Manatee | B111: 4 | C111: Notices of Appeal | D111: 250 | E111: 10 | F111: 3 | G111: 5 | H111: 55 | I111: 10 | J111: 1 | K111: 15 | L111: 15 | M111: 0
A112: Marion | B112: 4 | C112: Notices of Appeal | D112: 285 | E112: 14 | F112: 1 | G112: 1 | H112: 60 | I112: 1 | J112: 1 | K112: 29 | L112: 14 | M112: 1
A113: Martin | B113: 3 | C113: Notices of Appeal | D113: 115 | E113: 5 | F113: 9 | G113: 0 | H113: 49 | I113: 11 | J113: 1 | K113: 13 | L113: 1 | M113: 0
A114: Monroe | B114: 3 | C114: Notices of Appeal | D114: 74 | E114: 5 | F114: 0 | G114: 0 | H114: 54 | I114: 2 | J114: 1 | K114: 3 | L114: 115 | M114: 1
A115: Nassau | B115: 2 | C115: Notices of Appeal | D115: 45 | E115: 2 | F115: 1 | G115: 1 | H115: 10 | I115: 1 | J115: 1 | K115: 3 | L115: 0 | M115: 0
A116: Okaloosa | B116: 3 | C116: Notices of Appeal | D116: 120 | E116: 5 | F116: 1 | G116: 1 | H116: 50 | I116: 5 | J116: 1 | K116: 20 | L116: 5 | M116: 1
A117: Okeechobee | B117: 2 | C117: Notices of Appeal | D117: 69 | E117: 2 | F117: 0 | G117: 0 | H117: 13 | I117: 0 | J117: 1 | K117: 2 | L117: 2 | M117: 0
A118: Orange | B118: 6 | C118: Notices of Appeal | D118: 840 | E118: 25 | F118: 40 | G118: 40 | H118: 350 | I118: 90 | J118: 7 | K118: 80 | L118: 15 | M118: 25
A119: Osceola | B119: 4 | C119: Notices of Appeal | D119: 147 | E119: 11 | F119: 12 | G119: 12 | H119: 49 | I119: 24 | J119: 2 | K119: 24 | L119: 12 | M119: 2
A120: Palm Beach | B120: 6 | C120: Notices of Appeal | D120: 515 | E120: 30 | F120: 35 | G120: 28 | H120: 515 | I120: 90 | J120: 40 | K120: 125 | L120: 27 | M120: 21
A121: Pasco | B121: 5 | C121: Notices of Appeal | D121: 150 | E121: 15 | F121: 2 | G121: 2 | H121: 121 | I121: 17 | J121: 12 | K121: 24 | L121: 25 | M121: 5
A122: Pinellas | B122: 6 | C122: Notices of Appeal | D122: 250 | E122: 38 | F122: 12 | G122: 24 | H122: 234 | I122: 42 | J122: 10 | K122: 46 | L122: 18 | M122: 10
A123: Polk | B123: 5 | C123: Notices of Appeal | D123: 552 | E123: 36 | F123: 42 | G123: 6 | H123: 115 | I123: 13 | J123: 2 | K123: 32 | L123: 10 | M123: 3
A124: Putnam | B124: 3 | C124: Notices of Appeal | D124: 140 | E124: 2 | F124: 3 | G124: 3 | H124: 8 | I124: 3 | J124: 2 | K124: 6 | L124: 2 | M124: 1
A125: Santa Rosa | B125: 3 | C125: Notices of Appeal | D125: 101 | E125: 5 | F125: 3 | G125: 3 | H125: 42 | I125: 4 | J125: 1 | K125: 30 | L125: 7 | M125: 1
A126: Sarasota | B126: 4 | C126: Notices of Appeal | D126: 208 | E126: 5 | F126: 2 | G126: 10 | H126: 90 | I126: 2 | J126: 8 | K126: 14 | L126: 1 | M126: 0
A127: Seminole | B127: 4 | C127: Notices of Appeal | D127: 210 | E127: 35 | F127: 20 | G127: 35 | H127: 75 | I127: 35 | J127: 5 | K127: 15 | L127: 0 | M127: 0
A128: St. Johns | B128: 3 | C128: Notices of Appeal | D128: 103 | E128: 1 | F128: 0 | G128: 0 | H128: 34 | I128: 0 | J128: 2 | K128: 23 | L128: 3 | M128: 0
A129: St. Lucie | B129: 4 | C129: Notices of Appeal | D129: 200 | E129: 4 | F129: 10 | G129: 5 | H129: 60 | I129: 15 | J129: 2 | K129: 8 | L129: 20 | M129: 2
A130: Sumter | B130: 2 | C130: Notices of Appeal | D130: 40 | E130: 1 | F130: 1 | G130: 1 | H130: 40 | I130: 2 | J130: 1 | K130: 5 | L130: 1 | M130: 1
A131: Suwannee | B131: 2 | C131: Notices of Appeal | D131: 50 | E131: 1 | F131: 0 | G131: 0 | H131: 12 | I131: 0 | J131: 0 | K131: 4 | L131: 0 | M131: 0
A132: Taylor | B132: 2 | C132: Notices of Appeal | D132: 16 | E132: 1 | F132: 0 | G132: 0 | H132: 15 | I132: 0 | J132: 0 | K132: 0 | L132: 0 | M132: 0
A133: Union | B133: 1 | C133: Notices of Appeal | D133: 4 | E133: 0 | F133: 0 | G133: 0 | H133: 5 | I133: 0 | J133: 0 | K133: 2 | L133: 0 | M133: 0
A134: Volusia | B134: 5 | C134: Notices of Appeal | D134: 439 | E134: 2 | F134: 0 | G134: 5 | H134: 96 | I134: 55 | J134: 10 | K134: 27 | L134: 14 | M134: 5
A135: Wakulla | B135: 2 | C135: Notices of Appeal | D135: 5 | E135: 0 | F135: 0 | G135: 0 | H135: 5 | I135: 0 | J135: 0 | K135: 0 | L135: 0 | M135: 0
A136: Walton | B136: 2 | C136: Notices of Appeal | D136: 72 | E136: 2 | F136: 2 | G136: 3 | H136: 45 | I136: 2 | J136: 2 | K136: 5 | L136: 7 | M136: 0
A137: Washington | B137: 2 | C137: Notices of Appeal | D137: 12 | E137: 2 | F137: 2 | G137: 2 | H137: 4 | I137: 2 | J137: 5 | K137: 1 | L137: 1 | M137: 0
D139: Cir Crim | E139: Count Crim | F139: Juv Del | G139: Crim Traff | H139: Civ Cir | I139: Civ Count | J139: Probate | K139: Fam | L139: Juv Dep | M139: Civ Traffic
A140: Alachua | B140: 4 | C140: Reopens | D140: 1800 | E140: 580 | F140: 700 | G140: 700 | H140: 1200 | I140: 2200 | J140: 1500 | K140: 4800 | L140: 300 | M140: 0
A141: Baker | B141: 2 | C141: Reopens | D141: 200 | E141: 234 | F141: 39 | G141: 172 | H141: 6 | I141: 0 | J141: 6 | K141: 214 | L141: 0 | M141: 0
A142: Bay | B142: 3 | C142: Reopens | D142: 1989 | E142: 949 | F142: 914 | G142: 508 | H142: 884 | I142: 862 | J142: 28 | K142: 2960 | L142: 2721 | M142: 0
A143: Bradford | B143: 2 | C143: Reopens | D143: 125 | E143: 110 | F143: 12 | G143: 75 | H143: 45 | I143: 65 | J143: 8 | K143: 250 | L143: 2 | M143: 0
A144: Brevard | B144: 5 | C144: Reopens | D144: 8200 | E144: 2100 | F144: 2600 | G144: 2000 | H144: 6000 | I144: 3800 | J144: 2500 | K144: 8500 | L144: 800 | M144: 0
A145: Broward | B145: 6 | C145: Reopens | D145: 14280 | E145: 2400 | F145: 2160 | G145: 1320 | H145: 44160 | I145: 25080 | J145: 480 | K145: 28320 | L145: 4920 | M145: 0
A146: Calhoun | B146: 1 | C146: Reopens | D146: 150 | E146: 26 | F146: 10 | G146: 10 | H146: 15 | I146: 20 | J146: 4 | K146: 157 | L146: 64 | M146: 0
A147: Charlotte | B147: 3 | C147: Reopens | D147: 1015 | E147: 450 | F147: 300 | G147: 500 | H147: 1000 | I147: 600 | J147: 500 | K147: 600 | L147: 0 | M147: 0
A148: Citrus | B148: 3 | C148: Reopens | D148: 2100 | E148: 800 | F148: 200 | G148: 500 | H148: 950 | I148: 775 | J148: 800 | K148: 1800 | L148: 2100 | M148: 0
A149: Clay | B149: 3 | C149: Reopens | D149: 889 | E149: 193 | F149: 196 | G149: 151 | H149: 890 | I149: 602 | J149: 39 | K149: 2107 | L149: 1071 | M149: 0
A150: Collier | B150: 4 | C150: Reopens | D150: 1850 | E150: 1700 | F150: 275 | G150: 1400 | H150: 1900 | I150: 1275 | J150: 1170 | K150: 2900 | L150: 605 | M150: 0
A151: Columbia | B151: 2 | C151: Reopens | D151: 800 | E151: 300 | F151: 150 | G151: 530 | H151: 100 | I151: 360 | J151: 80 | K151: 1000 | L151: 100 | M151: 0
A152: Dade | B152: 6 | C152: Reopens | D152: 27000 | E152: 12600 | F152: 4900 | G152: 44200 | H152: 30100 | I152: 25000 | J152: 45000 | K152: 25800 | L152: 10000 | M152: 0
A153: Desoto | B153: 2 | C153: Reopens | D153: 300 | E153: 45 | F153: 80 | G153: 25 | H153: 25 | I153: 1 | J153: 1 | K153: 90 | L153: 100 | M153: 0
A154: Dixie | B154: 1 | C154: Reopens | D154: 177 | E154: 33 | F154: 4 | G154: 32 | H154: 0 | I154: 0 | J154: 0 | K154: 18 | L154: 0 | M154: 0
A155: Duval | B155: 5 | C155: Reopens | D155: 10528 | E155: 2796 | F155: 2521 | G155: 1962 | H155: 2632 | I155: 2076 | J155: 455 | K155: 8995 | L155: 276 | M155: 0
A156: Escambia | B156: 4 | C156: Reopens | D156: 7100 | E156: 1450 | F156: 4800 | G156: 350 | H156: 1450 | I156: 1200 | J156: 2300 | K156: 2100 | L156: 4000 | M156: 0
A157: Flagler | B157: 2 | C157: Reopens | D157: 400 | E157: 300 | F157: 80 | G157: 100 | H157: 750 | I157: 360 | J157: 180 | K157: 1000 | L157: 200 | M157: 0
A158: Franklin | B158: 1 | C158: Reopens | D158: 189 | E158: 158 | F158: 21 | G158: 51 | H158: 54 | I158: 1 | J158: 6 | K158: 113 | L158: 3 | M158: 0
A159: Gadsden | B159: 2 | C159: Reopens | D159: 519 | E159: 400 | F159: 41 | G159: 0 | H159: 188 | I159: 8 | J159: 125 | K159: 169 | L159: 0 | M159: 0
A160: Gilchrist | B160: 1 | C160: Reopens | D160: 98 | E160: 37 | F160: 16 | G160: 80 | H160: 9 | I160: 4 | J160: 4 | K160: 229 | L160: 5 | M160: 0
A161: Glades | B161: 1 | C161: Reopens | D161: 91 | E161: 18 | F161: 0 | G161: 9 | H161: 24 | I161: 6 | J161: 1 | K161: 63 | L161: 1 | M161: 0
A162: Gulf | B162: 1 | C162: Reopens | D162: 171 | E162: 35 | F162: 8 | G162: 31 | H162: 42 | I162: 3 | J162: 3 | K162: 140 | L162: 2 | M162: 0
A163: Hamilton | B163: 1 | C163: Reopens | D163: 90 | E163: 2 | F163: 1 | G163: 1 | H163: 42 | I163: 0 | J163: 0 | K163: 167 | L163: 0 | M163: 0
A164: Hardee | B164: 2 | C164: Reopens | D164: 255 | E164: 31 | F164: 31 | G164: 29 | H164: 60 | I164: 47 | J164: 141 | K164: 494 | L164: 141 | M164: 0
A165: Hendry | B165: 2 | C165: Reopens | D165: 170 | E165: 200 | F165: 35 | G165: 10 | H165: 60 | I165: 10 | J165: 65 | K165: 210 | L165: 65 | M165: 0
A166: Hernando | B166: 3 | C166: Reopens | D166: 3650 | E166: 400 | F166: 400 | G166: 300 | H166: 1300 | I166: 950 | J166: 800 | K166: 1200 | L166: 650 | M166: 0
A167: Highlands | B167: 3 | C167: Reopens | D167: 900 | E167: 1000 | F167: 1275 | G167: 900 | H167: 400 | I167: 500 | J167: 180 | K167: 1500 | L167: 300 | M167: 0
A168: Hillsborough | B168: 6 | C168: Reopens | D168: 15506 | E168: 2796 | F168: 2912 | G168: 1192 | H168: 11749 | I168: 13104 | J168: 5375 | K168: 15585 | L168: 682 | M168: 0
A169: Holmes | B169: 1 | C169: Reopens | D169: 250 | E169: 70 | F169: 25 | G169: 43 | H169: 18 | I169: 10 | J169: 5 | K169: 100 | L169: 20 | M169: 0
A170: Indian River | B170: 3 | C170: Reopens | D170: 1980 | E170: 456 | F170: 955 | G170: 142 | H170: 641 | I170: 799 | J170: 794 | K170: 1855 | L170: 929 | M170: 0
A171: Jackson | B171: 2 | C171: Reopens | D171: 324 | E171: 43 | F171: 13 | G171: 12 | H171: 147 | I171: 148 | J171: 154 | K171: 297 | L171: 70 | M171: 0
A172: Jefferson | B172: 1 | C172: Reopens | D172: 96 | E172: 20 | F172: 4 | G172: 20 | H172: 25 | I172: 80 | J172: 0 | K172: 125 | L172: 6 | M172: 0
A173: Lafayette | B173: 1 | C173: Reopens | D173: 60 | E173: 15 | F173: 4 | G173: 5 | H173: 4 | I173: 18 | J173: 1 | K173: 60 | L173: 1 | M173: 0
A174: Lake | B174: 4 | C174: Reopens | D174: 1250 | E174: 700 | F174: 250 | G174: 360 | H174: 2130 | I174: 1700 | J174: 750 | K174: 3350 | L174: 1370 | M174: 0
A175: Lee | B175: 5 | C175: Reopens | D175: 19200 | E175: 3650 | F175: 600 | G175: 2500 | H175: 4200 | I175: 4000 | J175: 4100 | K175: 7300 | L175: 2100 | M175: 0
A176: Leon | B176: 4 | C176: Reopens | D176: 745 | E176: 272 | F176: 4854 | G176: 224 | H176: 1752 | I176: 2148 | J176: 1753 | K176: 4611 | L176: 2525 | M176: 0
A177: Levy | B177: 2 | C177: Reopens | D177: 575 | E177: 200 | F177: 220 | G177: 60 | H177: 200 | I177: 250 | J177: 65 | K177: 575 | L177: 100 | M177: 0
A178: Liberty | B178: 1 | C178: Reopens | D178: 136 | E178: 28 | F178: 10 | G178: 18 | H178: 6 | I178: 4 | J178: 22 | K178: 51 | L178: 0 | M178: 0
A179: Madison | B179: 1 | C179: Reopens | D179: 300 | E179: 45 | F179: 25 | G179: 45 | H179: 7 | I179: 3 | J179: 1 | K179: 190 | L179: 3 | M179: 0
A180: Manatee | B180: 4 | C180: Reopens | D180: 4400 | E180: 750 | F180: 1185 | G180: 1100 | H180: 1600 | I180: 2000 | J180: 1400 | K180: 5200 | L180: 2000 | M180: 0
A181: Marion | B181: 4 | C181: Reopens | D181: 4331 | E181: 1263 | F181: 542 | G181: 3072 | H181: 2249 | I181: 1950 | J181: 1275 | K181: 5442 | L181: 98 | M181: 0
A182: Martin | B182: 3 | C182: Reopens | D182: 1753 | E182: 332 | F182: 775 | G182: 226 | H182: 793 | I182: 497 | J182: 544 | K182: 1216 | L182: 70 | M182: 0
A183: Monroe | B183: 3 | C183: Reopens | D183: 635 | E183: 113 | F183: 145 | G183: 48 | H183: 360 | I183: 90 | J183: 85 | K183: 314 | L183: 264 | M183: 0
A184: Nassau | B184: 2 | C184: Reopens | D184: 400 | E184: 500 | F184: 60 | G184: 800 | H184: 60 | I184: 300 | J184: 100 | K184: 1000 | L184: 300 | M184: 0
A185: Okaloosa | B185: 3 | C185: Reopens | D185: 4000 | E185: 1600 | F185: 700 | G185: 600 | H185: 1200 | I185: 1200 | J185: 700 | K185: 2100 | L185: 375 | M185: 0
A186: Okeechobee | B186: 2 | C186: Reopens | D186: 349 | E186: 166 | F186: 49 | G186: 98 | H186: 234 | I186: 147 | J186: 48 | K186: 464 | L186: 370 | M186: 0
A187: Orange | B187: 6 | C187: Reopens | D187: 10700 | E187: 2400 | F187: 8000 | G187: 2500 | H187: 17000 | I187: 10500 | J187: 5300 | K187: 14500 | L187: 2300 | M187: 0
A188: Osceola | B188: 4 | C188: Reopens | D188: 3399 | E188: 964 | F188: 247 | G188: 606 | H188: 1359 | I188: 612 | J188: 624 | K188: 2583 | L188: 1200 | M188: 0
A189: Palm Beach | B189: 6 | C189: Reopens | D189: 6600 | E189: 3700 | F189: 7700 | G189: 6800 | H189: 23700 | I189: 8000 | J189: 7400 | K189: 19700 | L189: 5500 | M189: 0
A190: Pasco | B190: 5 | C190: Reopens | D190: 18000 | E190: 3600 | F190: 2000 | G190: 1700 | H190: 3132 | I190: 2724 | J190: 1164 | K190: 4171 | L190: 8500 | M190: 0
A191: Pinellas | B191: 6 | C191: Reopens | D191: 6200 | E191: 2600 | F191: 2700 | G191: 3400 | H191: 5300 | I191: 3400 | J191: 5100 | K191: 5800 | L191: 1150 | M191: 0
A192: Polk | B192: 5 | C192: Reopens | D192: 8952 | E192: 3400 | F192: 2550 | G192: 1600 | H192: 4650 | I192: 4500 | J192: 930 | K192: 9150 | L192: 1750 | M192: 0
A193: Putnam | B193: 3 | C193: Reopens | D193: 2160 | E193: 300 | F193: 30 | G193: 150 | H193: 220 | I193: 240 | J193: 90 | K193: 1440 | L193: 300 | M193: 0
A194: Santa Rosa | B194: 3 | C194: Reopens | D194: 1375 | E194: 767 | F194: 206 | G194: 381 | H194: 591 | I194: 592 | J194: 479 | K194: 1097 | L194: 760 | M194: 0
A195: Sarasota | B195: 4 | C195: Reopens | D195: 4271 | E195: 1231 | F195: 490 | G195: 1249 | H195: 3989 | I195: 2197 | J195: 2934 | K195: 3353 | L195: 7 | M195: 0
A196: Seminole | B196: 4 | C196: Reopens | D196: 3700 | E196: 1400 | F196: 1200 | G196: 1100 | H196: 2000 | I196: 2200 | J196: 1700 | K196: 2000 | L196: 3700 | M196: 0
A197: St. Johns | B197: 3 | C197: Reopens | D197: 3336 | E197: 557 | F197: 213 | G197: 162 | H197: 242 | I197: 20 | J197: 28 | K197: 976 | L197: 46 | M197: 0
A198: St. Lucie | B198: 4 | C198: Reopens | D198: 2200 | E198: 2200 | F198: 1400 | G198: 1300 | H198: 2000 | I198: 1800 | J198: 900 | K198: 3000 | L198: 300 | M198: 0
A199: Sumter | B199: 2 | C199: Reopens | D199: 400 | E199: 100 | F199: 50 | G199: 240 | H199: 420 | I199: 230 | J199: 275 | K199: 625 | L199: 60 | M199: 0
A200: Suwannee | B200: 2 | C200: Reopens | D200: 800 | E200: 120 | F200: 100 | G200: 80 | H200: 55 | I200: 140 | J200: 25 | K200: 420 | L200: 10 | M200: 0
A201: Taylor | B201: 2 | C201: Reopens | D201: 582 | E201: 121 | F201: 15 | G201: 25 | H201: 94 | I201: 60 | J201: 14 | K201: 245 | L201: 1 | M201: 0
A202: Union | B202: 1 | C202: Reopens | D202: 60 | E202: 30 | F202: 4 | G202: 45 | H202: 45 | I202: 21 | J202: 8 | K202: 210 | L202: 2 | M202: 0
... 71 more rows
